Workbook

Sheet Guide
A1: Quick reference guide to KSB mapping | C1: Table to assist with B11-13
C2: Reference | D2: Name of occupational standard
A3: 1. START HERE | C3: ST0108 | D3: Dental technician (integrated) (Level 5)
A4: Awarding body: | C4: ST0220 | D4: Healthcare science associate (Level 4)
A5: Please type the name of your awarding body here | C5: ST0283 | D5: Senior metrology technician (Level 5)
A6: Qualification name: | C6: ST0287 | D6: Associate ambulance practitioner (Level 4)
A7: Please type your qualification title here | C7: ST0431 | D7: Rehabilitation worker (visual impairment) (Level 5)
A8: Programme title if applicable: | C8: ST0542 | D8: Oral health practitioner (Level 4)
A9: Please type the programme title here | C9: ST0543 | D9: Clinical dental technician (integrated) (Level 5)
A10: Please select the occupational standard(s) you are mapping in this spreadsheet | B10: Dropdown Options | C10: ST0583 | D10: Mammography associate (Level 4)
A11: Standard 1 - select from the dropdown list to the right | C11: ST0600 | D11: Hearing aid dispenser (Level 5)
A12: Standard 2 - select from the dropdown list to the right | C12: ST0701 | D12: Orthodontic therapist (integrated) (Level 4)
A13: Standard 3 - select from the dropdown list to the right | C13: ST0770 - HPC | D13: Sports coach - High performance coach (Level 4)
A14: If your qualification maps to more than three occupational standards, please contact us at HTQ.approvals@education.gov.uk | C14: ST0770 - CC | D14: Sports coach - Community coach (Level 4)
C15: ST0770 - SC | D15: Sports coach - School coach (Level 4)
A16: 2. GUIDE TO KSB MAPPING | C16: ST0786 | D16: Associate continuing healthcare practitioner (Level 5)
A17: Awarding bodies must demonstrate that a qualification will enable a person to demonstrate that they have attained as many of the knowledge, skills and behaviours set out in the standard as may be reasonably expected by undertaking a course of education. | C17: ST0827 | D17: Nursing associate (NMC 2018) (Level 5)
C18: ST0829 | D18: Health play specialist (Level 5)
A19: Before you begin, please list your qualification modules in the 'Structure' tab. | C19: ST0873 | D19: Hygiene specialist (Level 4)
A20: 1. You can map your qualification to one or more occupational standards.
A21: 2. Select the occupational standard(s) you wish to map to your qualification by clicking the blue STxxxx link in the reference column, to the right.
A22: 3. When the occupational standard opens, double check the name of the standard is correct.
A23: 4. Please respond to each KSB statement.
A24: 5. Populate the Detailed page/paragraph reference, KSB coverage, Evidence, Assessment method and Supporting comments/rationale columns, as shown in the example below.
A25: 6. Please be as specific as possible about which content in the qualification aligns to each KSB statement.
A26: 7. You may delete sheets/tabs that are not relevant to your qualification.
A27: 8. Submit the completed spreadsheet along with any documents you have cited in the 'EVIDENCE UPLOAD' part of the application form. Where we have capacity we are happy to feedback on early drafts of your KSB mapping.
A28: 9. Please contact HTQ.approvals@education.gov.uk if you need further help or guidance on mapping.
A30: 3. EXAMPLE OF KSB MAPPING
A31: Please see the KSB mapping examples to the right. | B31: KSB Number | C31: This is the list of KSB statements | D31: Where in the qualification is the content? Indicate the reference document(s)/module(s)/unit(s) and page/paragraph number(s) you are citing as evidence of coverage | E31: Select the coverage from the drop down list | F31: Paste or type clear evidence supporting your KSB coverage. For example, learning outcomes or indicative module content | G31: Provide information on how this KSB is assessed, i.e. the method of assessment used. | H31: Provide comments and/or a rationale to support the evidence you have cited. If the KSB mentions key terms not explicitly referenced in your evidence, please explain how they are covered. If you have partially met or not met a KSB, provide a rationale to support your judgement
B32: KSB | C32: KSB Statement | D32: Detailed page/paragraph reference | E32: KSB coverage | F32: Evidence | G32: Assessment method | H32: Supporting comments/rationale
B33: K1 | C33: Understand the background legislation and regulatory frameworks (such as IBL 188) relating to the occupation. | D33: Module 1.1 Legal and Ethical Considerations; p44-45, para 4-7. Module 4.2 Professional Issues and CPD; p9, para 3-4. Qualification specification p4. | E33: FULLY MET | F33: MO1.1 LO3 Understand and critically reflect on legislation relating to and affecting the occupation. Indicative content Legal background; legislation; role of industry bodies; national/international considerations. MO4.2 LO2 Understand the importance of staying up to date with professional developments in the field, including legal frameworks, industry best practice, guidelines and relevant standards. | G33: Students are required to produce a written report using a brief provided. Within this report students are expected to cover relevant laws, legislation and industry body standards relevant to the brief. | H33: The detailed coverage of relevant law and legislation is taught in Year 1. It is covered again in Year 2, where learners reflect on it from a professional perspective. The national regulatory framework and industry body standards (e.g. IBL 188) are covered in detail.
B34: K2 | C34: The principles, features and differences of waterfall and agile methodologies for project delivery and software development. | D34: Module 3. Software development; p.6, para 4-7. | E34: FULLY MET | F34: MO3 LO 1 Critically analyse and evaluate approaches to software development methodologies. Theory, method and application. Indicative content Use of different software methodologies; matching methodology to function. A range of software methodologies are covered and applied to software problems. | G34: K2 is assessed via a project. Within this project students will be expected to demonstrate practical application and produce written project report(s) which evidence methodologies and methods. | H34: Waterfall and agile are not explicitly referred to in the LO or indicative content, although they are both fully covered in this module. We cover four approaches to software development, providing background, theory and practical applications. Learners will get 'hands on' experience of evaluating waterfall and agile, including their use in real-world problem solving and project delivery.

Sheet Structure
A1: Return to Guide
A2: Please list all the modules in the qualification | L2: Response
A3: Does every possible combination of modules/units/pathways ensure that a learner achieves competence in the occupation(s) which the TQ is in respect of and for which the Institute has published an occupational standard
A5: Note: If a module/unit is not aligned/mapped to an occupational standard it is classed as additional content
A7: Module Code | B7: Module Name | C7: Full-Time Year | D7: Part-Time Year | E7: Core/Option | F7: Mapped to Standard(s) | G7: Credits | H7: Level | I7: Delivery Method | J7: Delivery comments
A8: EXAMPLE001 | B8: Foundations of Technical Concepts | C8: Year 1 | D8: Year 1 | E8: Core | F8: ST0215, ST0287 | G8: 30 | H8: 4 | I8: Mixed | J8: 40% classroom, 60% placement.

Sheet ST0108
B1: Dental technician (integrated) (Level 5)
B2: Return to Guide
A3: KSB | B3: KSB Statement | C3: Detailed page/paragraph reference | D3: KSB coverage | E3: Evidence | F3: Assessment method | G3: Supporting comments/rationale | H3: Documents Present | I3: AB Score | J3: IM Score | K3: Mitigations | L3: CoE Score | M3: Requirement | N3: IM Comment | O3: G7 QA | P3: IM G7 Response | Q3: Conclusion
B4: Knowledge
A5: K1 | B5: Oral Anatomy - Normal dental/oral anatomy and physiology. | I5: =IF(D5:D10 = "FULLY MET",1,IF(D5:D10 = "PARTIALLY MET",0.5,IF(D5:D10 = "NOT MET",0,))) -> 0 | K5: NONE
A6: K2 | B6: Dental devices and combating oral problems - How design of custom-made devices can contribute to restoration of functionality as well as prevention of oral disease/further decline. | I6: 0 | K6: NONE
A7: K3 | B7: Manufacturing Procedures - The procedures used in design and manufacture of custom made devices - dentures, crowns, bridges, orthodontic (including Computer Aided Design (CAD)/ Computer Aided Manufacturing (CAM) & IT Solutions). | I7: 0 | K7: NONE
A8: K4 | B8: Material Selection - The principles regarding the selection and use of materials for use in custom made dental devices. | I8: 0 | K8: NONE
A9: K5 | B9: The Dental Team and Professionalism - The role of Dental Technician and other dental team members in management and leadership, professionalism and communication. | I9: 0 | K9: NONE
A10: K6 | B10: Medical Devices Directive & GDC Guidelines - Compliance with the Medical Devices Directive Council 93/42/EEC (MDD), GDC standards for Dental Team, Scope of practice http://www.gdc-uk.org/Newsandpublications/Publications/Publications/StudentFtPApril10web_260310[1 ].pdf | I10: 0 | K10: NONE
B11: Skills
A12: S1 | B12: Appropriate Device Selection - Advise the prescribing dentist on appropriate dental devices based on dentist input, while recognising oral limitations and their effect on devices. Evaluate, for individual patients, the need for more complex treatment and seek advice from the dentist or more experienced Dental Technicians as appropriate. | I12: =IF(D12 = "FULLY MET",1,IF(D12 = "PARTIALLY MET",0.5,IF(D12 = "NOT MET",0,))) -> 0 | K12: PARTIAL
A13: - | B13: Device Manufacture - Design, manufacture, assess, repair, modify and provide biomechanically sound custom- made dental devices in the following three areas:
A14: S2 | B14: 1. Prosthetic Device Manufacture (Dentures) - Design and manufacture complete and partial removable prosthesis, including the provision of custom made impression trays | I14: =IF(D14:D21 = "FULLY MET",1,IF(D14:D21 = "PARTIALLY MET",0.5,IF(D14:D21 = "NOT MET",0,))) -> 0 | K14: NONE
A15: S3 | B15: 2. Conservation Device Manufacture (Crown/Bridge) - Produce models and dies for conservation work Design and manufacture single metallic and tooth coloured restorations Create substructures for bridgework and apply tooth coloured materials for permanent restorations | I15: 0 | K15: NONE
A16: S4 | B16: 3. Orthodontic Device Manufacture (Braces) - Produce models for Orthodontic case study purposes and appliance construction Design and manufacture removable, functional and fixed orthodontic appliances | I16: 0 | K16: NONE
A17: S5 | B17: Digital Manufacturing Procedures - Aware of the basic procedures used in design and manufacture of custom made devices (including CAD/CAM & IT Solutions). | I17: 0 | K17: NONE
A18: S6 | B18: Device Assessment - Assess impressions, models and finished devices as well as the fitness for purpose of devices and propose alternatives where necessary, in line with patient prescription, and formally record these decisions as for MDD requirements Can review and Quality Assure the devices | I18: 0 | K18: PARTIAL
A19: S7 | B19: Implants and attachments - Aware of basic procedures for the use of implants, milling and precision attachments as used with various forms of custom made dental restorations | I19: 0 | K19: NONE
A20: S8 | B20: Communication - Communicate effectively with and about patients, their representatives and the rest of the dental team. Handle complaints effectively and within GDC guidelines. | I20: 0 | K20: PARTIAL
A21: S9 | B21: Decontamination & Infection Control - Manage safety, infection control and decontamination risks around the dental laboratory in keeping with current regulations | I21: 0 | K21: NONE
B22: Behaviours
A23: B1 | B23: Continuing Personal Development - Proactive in their own development, willing to commit to lifelong learning by use of a Personal Development Plan (PDP), personal reflection and continuous improvement. | I23: =IF(D23:D26 = "FULLY MET",1,IF(D23:D26 = "PARTIALLY MET",0.5,IF(D23:D26 = "NOT MET",0,))) -> 0 | K23: NONE
A24: B2 | B24: Ethical/Legal Awareness - Recognise and act within GDC standards, ethical guidance, information governance and relevant laws. | I24: 0 | K24: NONE
A25: B3 | B25: Collaboration - Willing to give and receive feedback effectively and tactfully within the wider dental team; takes responsibility for establishing personal networks with dental professionals, specialists and other relevant individuals and organisations. | I25: 0 | K25: PARTIAL
A26: B4 | B26: Responsibility & Integrity - Ready to take responsibility for integrity of completed work. | I26: 0 | K26: NONE
I29: Gross score | J29: =SUM(J5:J26) -> 0 | K29: Net Score | L29: =SUM(L5:L26) -> 0
I30: total KSB coverage | J30: =J29/L33 -> 0 | K30: total CoE KSB coverage | L30: =L29/L36 -> 0
K33: total KSBs | L33: 19
K34: fully mitigated | L34: 0
K35: partialy mitigated | L35: 4
K36: net KSB | L36: =L33-L34-(L35*0.5) -> 17

Sheet ST0215 (hidden)
B1: Assistant practitioner (health) (Level 5) | C1: DO NOT USE
B2: Return to Guide
A3: KSB | B3: KSB Statement | C3: Detailed page/paragraph reference | D3: KSB coverage | E3: Evidence | F3: Assessment method | G3: Supporting comments/rationale | H3: Documents Present | I3: AB Score | J3: IM Score | K3: CoE Score | L3: IM Comment | M3: G7 QA | N3: IM G7 Response | O3: Mitigations | P3: Requirement | Q3: Conclusion
B4: Knowledge
A5: K1 | I5: =IF(D5:D128 = "FULLY MET",1,IF(D5:D128 = "PARTIALLY MET",0.5,IF(D5:D128 = "NOT MET",0,))) -> 0
A6: K2 | I6: 0
A7: K3 | I7: 0
A8: K4 | I8: 0
A9: K5 | I9: 0
A10: K6 | I10: 0
A11: K7 | I11: 0
A12: K8 | I12: 0
A13: K9 | I13: 0
A14: K10 | I14: 0
A15: K11 | I15: 0
A16: K12 | I16: 0
A17: K13 | I17: 0
A18: K14 | I18: 0
A19: K15 | I19: 0
A20: K16 | I20: 0
A21: K17 | I21: 0
A22: K18 | I22: 0
A23: K19 | I23: 0
A24: K20 | I24: 0
A25: K21 | I25: 0
A26: K22 | I26: 0
A27: K23 | I27: 0
A28: K24 | I28: 0
A29: K25 | I29: 0
A30: K26 | I30: 0
B31: Skills | I31: 0
A32: S1 | I32: 0
A33: S2 | I33: 0
A34: S3 | I34: 0
A35: S4 | I35: 0
A36: S5 | I36: 0
A37: S6 | I37: 0
A38: S7 | I38: 0
A39: S8 | I39: 0
A40: S9 | I40: 0
A41: S10 | I41: 0
A42: S11 | I42: 0
A43: S12 | I43: 0
A44: S13 | I44: 0
A45: S14 | I45: 0
A46: S15 | I46: 0
A47: S16 | I47: 0
A48: S17 | I48: 0
A49: S18 | I49: 0
A50: S19 | I50: 0
A51: S20 | I51: 0
A52: S21 | I52: 0
B53: Behaviours | I53: 0
A54: B1 | I54: 0
A55: B2 | I55: 0
A56: B3 | I56: 0
I57: 0
I58: 0
I59: 0
I60: 0
I61: 0
I62: 0
I63: 0
I64: 0
I65: 0
I66: 0
I67: 0
I68: 0
I69: 0
I70: 0
I71: 0
I72: 0
I73: 0
I74: 0
I75: 0
I76: 0
I77: 0
I78: 0
I79: 0
I80: 0
I81: 0
I82: 0
I83: 0
I84: 0
I85: 0
I86: 0
I87: 0
I88: 0
I89: 0
I90: 0
I91: 0
I92: 0
I93: 0
I94: 0
I95: 0
I96: 0
I97: 0
I98: 0
I99: 0
I100: 0
I101: 0
I102: 0
I103: 0
I104: 0
I105: 0
I106: 0
I107: 0
I108: 0
I109: 0
I110: 0
I111: 0
I112: 0
I113: 0
I114: 0
I115: 0
I116: 0
I117: 0
I118: 0
I119: 0
I120: 0
I121: 0
I122: 0
I123: 0
I124: 0
I125: 0
I126: 0
I127: 0
I128: 0

Sheet ST0220
B1: Healthcare science associate (Level 4)
B2: Return to Guide
A3: KSB | B3: KSB Statement | C3: Detailed page/paragraph reference | D3: KSB coverage | E3: Evidence | F3: Assessment method | G3: Supporting comments/rationale | H3: Documents Present | I3: AB Score | J3: IM Score | K3: Mitigations | L3: CoE Score | M3: Requirement | N3: IM Comment | O3: G7 QA | P3: IM G7 Response | Q3: Conclusion
B4: Knowledge
A5: - | B5: Professional Practice and Person-Centred Care
A6: K1 | B6: The requirements of the NHS Constitution/GSP for ‘person centred care and support’ | I6: =IF(D6:D13 = "FULLY MET",1,IF(D6:D13 = "PARTIALLY MET",0.5,IF(D6:D13 = "NOT MET",0,))) -> 0 | K6: NONE
A7: K2 | B7: Equality and diversity legislation, policies and local ways of working | I7: 0 | K7: NONE
A8: K3 | B8: Probity and honesty in all aspects of your professional practice | I8: 0 | K8: NONE
A9: K4 | B9: The importance of involving patients/the public in HCS and in making choices about their care | I9: 0 | K9: NONE
A10: K5 | B10: The principles underpinning the promotion of mental health and well-being | I10: 0 | K10: NONE
A11: K6 | B11: Active listening, observation and the use of appropriate language and feedback | I11: 0 | K11: NONE
A12: K7 | B12: Best practice in giving an oral presentation | I12: 0 | K12: NONE
A13: K8 | B13: Approaches to effective problem solving | I13: 0 | K13: NONE
A14: - | B14: Personal and Professional Development (PPD)
A15: K9 | B15: Critical reflection in helping maintain and support the quality and safety of patient care | I15: =IF(D15:D17 = "FULLY MET",1,IF(D15:D17 = "PARTIALLY MET",0.5,IF(D15:D17 = "NOT MET",0,))) -> 0 | K15: NONE
A16: K10 | B16: Good mentoring practice, using underpinning theories of mentoring to support this | I16: 0 | K16: NONE
A17: K11 | B17: Good appraisal and performance review & the skills required to prepare an action plan | I17: 0 | K17: NONE
B18: Health, Safety and Security
A19: K12 | B19: Legislation/policies relating to health and safety at work and your responsibilities | I19: =IF(D19:D21 = "FULLY MET",1,IF(D19:D21 = "PARTIALLY MET",0.5,IF(D19:D21 = "NOT MET",0,))) -> 0 | K19: NONE
A20: K13 | B20: Best practice in infection control practice and local protocols | I20: 0 | K20: NONE
A21: K14 | B21: Risk assessments, including dissemination of findings and implementation of outcomes | I21: 0 | K21: NONE
B22: Quality
A23: K15 | B23: Quality management/improvement/audit and communication skills within the area of practice | I23: =IF(D23 = "FULLY MET",1,IF(D23 = "PARTIALLY MET",0.5,IF(D23 = "NOT MET",0,))) -> 0 | K23: NONE
B24: Technical Scientific Services
A25: K16 | B25: Underpinning clinical science (e.g. anatomy, physiology, pathology, pharmacology, etc) | I25: =IF(D25:D32 = "FULLY MET",1,IF(D25:D32 = "PARTIALLY MET",0.5,IF(D25:D32 = "NOT MET",0,))) -> 0 | K25: NONE
A26: K17 | B26: Genomics, clinical bioinformatics/personalised medicine | I26: 0 | K26: NONE
A27: K18 | B27: Principles and practice of equipment management | I27: 0 | K27: NONE
A28: K19 | B28: Requirements for drafting of Standard Operating Procedures (SOPs) | I28: 0 | K28: NONE
A29: K20 | B29: Critical evaluation of the evidence base that underpins your technical practice | I29: 0 | K29: NONE
A30: K21 | B30: A range of different data presentation methods appropriate for the audience/circumstances | I30: 0 | K30: NONE
A31: K22 | B31: Practical skills teaching frameworks; assessment methods & assessment of practical skills | I31: 0 | K31: NONE
A32: K23 | B32: The principles underpinning the practical training of others in techniques and procedures | I32: 0 | K32: NONE
B33: Clinical Care
A34: K24 | B34: Duty of care’ and safeguarding | I34: =IF(D34:D39 = "FULLY MET",1,IF(D34:D39 = "PARTIALLY MET",0.5,IF(D34:D39 = "NOT MET",0,))) -> 0 | K34: NONE
A35: K25 | B35: The support available in difficult situations or when a complaint is made | I35: 0 | K35: NONE
A36: K26 | B36: The rights of patients with regard to giving informed consent for treatment when required | I36: 0 | K36: NONE
A37: K27 | B37: Confidentiality of consultation/medical records and the limits of the concept of confidentiality | I37: 0 | K37: NONE
A38: K28 | B38: The key factors influencing dignity/rights/privacy/confidentiality of patients/colleagues | I38: 0 | K38: NONE
A39: K29 | B39: Appropriate technical investigations for relevant clinical conditions | I39: 0 | K39: NONE
B40: Audit/Service Improvement
A41: K30 | B41: The governance and ethical framework applied to audit and its contribution to patient care | I41: =IF(D41:D42 = "FULLY MET",1,IF(D41:D42 = "PARTIALLY MET",0.5,IF(D41:D42 = "NOT MET",0,))) -> 0 | K41: NONE
A42: K31 | B42: The delivery of high quality service outcomes/continuous improvements | I42: 0 | K42: NONE
B43: Research & Innovation
A44: K32 | B44: The benefits of research to the critical evaluation of practice | I44: =IF(D44:D45 = "FULLY MET",1,IF(D44:D45 = "PARTIALLY MET",0.5,IF(D44:D45 = "NOT MET",0,))) -> 0 | K44: NONE
A45: K33 | B45: The principles of developing and introducing innovation into practice | I45: 0 | K45: NONE
B46: Leadership
A47: K34 | B47: The principles of leading teams/individuals based on the healthcare NHS Leadership Model | I47: =IF(D47:D48 = "FULLY MET",1,IF(D47:D48 = "PARTIALLY MET",0.5,IF(D47:D48 = "NOT MET",0,))) -> 0 | K47: NONE
A48: K35 | B48: Common models, and examples of leadership and team-working | I48: 0 | K48: NONE
A49: - | B49: Skills: Consistently working to the standards:
A50: - | B50: Professional Pracice and Person-Centred Care
A51: S1 | B51: Never discriminate against patients, carers or colleagues | I51: =IF(D51:D56 = "FULLY MET",1,IF(D51:D56 = "PARTIALLY MET",0.5,IF(D51:D56 = "NOT MET",0,))) -> 0 | K51: PARTIAL
A52: S2 | B52: Maintain the highest standards of person centred care, treating every person with compassion, dignity and respect | I52: 0 | K52: PARTIAL
A53: S3 | B53: Develop partnerships with patients/carers/families | I53: 0 | K53: FULL
A54: S4 | B54: Promote mental health and well being | I54: 0 | K54: NONE
A55: S5 | B55: Convey information to agreed protocols to the public, patients, carers, colleagues, including giving and receiving feedback | I55: 0 | K55: PARTIAL
A56: S6 | B56: Use technology to present information orally | I56: 0 | K56: NONE
A57: - | B57: Personal and Professional Development (PPD)
A58: S7 | B58: Critically reflect on your technical/non-technical practice | I58: =IF(D58:D60 = "FULLY MET",1,IF(D58:D60 = "PARTIALLY MET",0.5,IF(D58:D60 = "NOT MET",0,))) -> 0 | K58: NONE
A59: S8 | B59: Work within the limits of your personal competence/keep up-to-date | I59: 0 | K59: PARTIAL
A60: S9 | B60: Support the CPPD of junior colleagues and respond constructively to appraisal/feedback | I60: 0 | K60: PARTIAL
A61: - | B61: Health, Safety and Security
A62: S10 | B62: Maintain a safe and healthy working environment | I62: =IF(D62:D63 = "FULLY MET",1,IF(D62:D63 = "PARTIALLY MET",0.5,IF(D62:D63 = "NOT MET",0,))) -> 0 | K62: NONE
A63: S11 | B63: Train junior staff in relevant health, safety/security practices, including infection control and participate in risk assessments | I63: 0 | K63: PARTIAL
A64: - | B64: Quality
A65: S12 | B65: Lead quality management technical audit processes as required | I65: =IF(D65 = "FULLY MET",1,IF(D65 = "PARTIALLY MET",0.5,IF(D65 = "NOT MET",0,))) -> 0 | K65: PARTIAL
A66: - | B66: Technical Scientific Services
A67: S13 | B67: Where appropriate, perform a range of equipment management | I67: =IF(D67:D73 = "FULLY MET",1,IF(D67:D73 = "PARTIALLY MET",0.5,IF(D67:D73 = "NOT MET",0,))) -> 0 | K67: PARTIAL
A68: S14 | B68: Skills e.g. fault-finding/preventative maintenance/calibration/repair | I68: 0 | K68: NONE
A69: S15 | B69: Participate in drafting Standard Operating Procedures (SOPs) | I69: 0 | K69: NONE
A70: S16 | B70: Make reasoned decisions to initiate/continue/modify or cease using techniques/procedures, reflecting SOPs and senior input | I70: 0 | K70: PARTIAL
A71: S17 | B71: Recognise problems and seek technical solutions to them | I71: 0 | K71: NONE
A72: S18 | B72: Analyse/interpret/record/present accurately HCS technical data | I72: 0 | K72: NONE
A73: S19 | B73: Supervise/teach/assess practical skills to junior team members | I73: 0 | K73: PARTIAL
A74: - | B74: Clinical Care
A75: S20 | B75: Take responsibility for the care you provide and its impact on patients, including safeguarding, if involved in direct patient care | I75: =IF(D75:D78 = "FULLY MET",1,IF(D75:D78 = "PARTIALLY MET",0.5,IF(D75:D78 = "NOT MET",0,))) -> 0 | K75: PARTIAL
A76: S21 | B76: Obtain and document appropriate consent in line with protocols | I76: 0 | K76: NONE
A77: S22 | B77: Protect patient/carers confidentiality and privacy | I77: 0 | K77: PARTIAL
A78: S23 | B78: Deliver high quality technical clinical procedures in the investigation/management of patients | I78: 0 | K78: FULL
A79: - | B79: Audit/Service Improvement
A80: S24 | B80: Participate in audit and/or service improvement programmes | I80: =IF(D80:D81 = "FULLY MET",1,IF(D81:D81 = "PARTIALLY MET",0.5,IF(D80:D81 = "NOT MET",0,))) -> 0 | K80: NONE
A81: S25 | B81: Communicate the outcome of audit, service improvement | I81: 0 | K81: NONE
A82: - | B82: Research & Innovation
A83: S26 | B83: Undertake appropriate audit/research/innovation activities which support quality improvement in your area of work | I83: =IF(D83:D84 = "FULLY MET",1,IF(D83:D84 = "PARTIALLY MET",0.5,IF(D83:D84 = "NOT MET",0,))) -> 0 | K83: NONE
A84: S27 | B84: Support quality improvement in your area of work | I84: 0 | K84: NONE
A85: - | B85: Leadership
A86: S28 | B86: Plan/assess the work of a team and individuals within it | I86: =IF(D86:D87 = "FULLY MET",1,IF(D86:D87 = "PARTIALLY MET",0.5,IF(D86:D87 = "NOT MET",0,))) -> 0 | K86: NONE
A87: S29 | B87: Lead where appropriate and work effectively within the HCS team | I87: 0 | K87: PARTIAL
B88: Behaviours
A89: B1 | B89: Compassionate | I89: =IF(D89:D92 = "FULLY MET",1,IF(D89:D92 = "PARTIALLY MET",0.5,IF(D89:D92 = "NOT MET",0,))) -> 0 | K89: PARTIAL
A90: B2 | B90: Honest | I90: 0 | K90: PARTIAL
A91: B3 | B91: Conscientious | I91: 0 | K91: PARTIAL
A92: B4 | B92: Adhere to the standards of GSP which sets out for the standards of behaviour/practice/personal conduct that underpin the delivery of HCS appropriate to the role/work undertaken. | I92: 0 | K92: PARTIAL
I95: Gross score | J95: =SUM(J6:J92) -> 0 | K95: Net Score | L95: =SUM(L6:L92) -> 0
I96: total KSB coverage | J96: =J95/L99 -> 0 | K96: total CoE KSB coverage | L96: =L95/L102 -> 0
K99: total KSBs | L99: 68
K100: fully mitigated | L100: 2
K101: partialy mitigated | L101: 17
K102: net KSB | L102: =L99-L100-(L101*0.5) -> 57.5

Sheet ST0283
B1: Senior metrology technician (Level 5)
B2: Return to Guide
A3: KSB | B3: KSB Statement | C3: Detailed page/paragraph reference | D3: KSB coverage | E3: Evidence | F3: Assessment method | G3: Supporting comments/rationale | H3: Documents Present | I3: AB Score | J3: IM Score | K3: Mitigations | L3: CoE Score | M3: Requirement | N3: IM Comment | O3: G7 QA | P3: IM G7 Response | Q3: Conclusion
B4: Knowledge
A5: K1 | B5: How to apply a measurement strategy, processes and techniques, including, variation, uncertainty and traceability within the organisation | I5: =IF(D5:D11 = "FULLY MET",1,IF(D5:D11 = "PARTIALLY MET",0.5,IF(D5:D11 = "NOT MET",0,))) -> 0 | K5: NONE
A6: K2 | B6: How metrology is evolving, including new and specialist technological and scientific developments and how these will impact on the future industry | I6: 0 | K6: NONE
A7: K3 | B7: Project management principles and systems; quality management and assurance systems; business improvement and innovation systems; processes and techniques and the how these relate to the business environment in which the organisation operates | I7: 0 | K7: PARTIAL
A8: K4 | B8: Commercial and contractual obligations including forecasts, budgets, cost and performance monitoring techniques. | I8: 0 | K8: NONE
A9: K5 | B9: The appropriate mathematical, scientific and systems analysis techniques and analytical methods to support measurement processes, systems and software. | I9: 0 | K9: NONE
A10: K6 | B10: How to apply health, safety and environmental legislation, regulation, industry and organisational policies, procedures and requirements within the organisation | I10: 0 | K10: NONE
A11: K7 | B11: How to apply national and international regulations and standards, industry and organisational procedures and requirements relating to codes of conduct within the organisation | I11: 0 | K11: NONE
B12: Skills
A13: S1 | B13: Develop and monitor measurement capability and capacity within own area of responsibility to support strategic planning. | I13: =IF(D13:D24 = "FULLY MET",1,IF(D13:D24 = "PARTIALLY MET",0.5,IF(D13:D24 = "NOT MET",0,))) -> 0 | K13: NONE
A14: S2 | B14: Investigate and suggest changes to process control activities to ensure compliance with contractual, organisational and industry procedures and requirements | I14: 0 | K14: PARTIAL
A15: S3 | B15: Participate in risk assessments, assess outcomes and make suitable recommendations for change to processes and procedures, as appropriate. | I15: 0 | K15: NONE
A16: S4 | B16: Plan and manage resources to meet the needs and objectives of the organisation and its customers | I16: 0 | K16: PARTIAL
A17: S5 | B17: Plan, manage, monitor and evaluate measurement activities in a way that contributes to sustainable development, continuous improvement and supports good practice. | I17: 0 | K17: NONE
A18: S6 | B18: Diagnose and solve complex problems in relation to measurement activities and take corrective and preventative action as appropriate | I18: 0 | K18: NONE
A19: S7 | B19: Participate in and provide advice on internal and external audits ensuring verification, validation, quality assurance, quality control, compliance and identify process improvement opportunities, where applicable. | I19: 0 | K19: PARTIAL
A20: S8 | B20: Develop communication channels and build effective relationships, by engaging colleagues, customers and stakeholders and presenting information in a clear and concise way, to meet organisational requirements. | I20: 0 | K20: PARTIAL
A21: S9 | B21: Produce and confirm records, reports and other measurement documentation, as required. | I21: 0 | K21: NONE
A22: S10 | B22: Verify, analyse, evaluate, validate and store measurement information, results and data in line with organisational procedures and specifications to support measurement and continuous improvement activities. | I22: 0 | K22: PARTIAL
A23: S11 | B23: Ensure compliance with relevant health, safety and environmental legislation, regulation, industry and organisational policies and procedures and requirements relating to safe working practices | I23: 0 | K23: PARTIAL
A24: S12 | B24: Ensure compliance with statutory regulations, national and international standards, industry and organisational procedures and requirements relating to codes of conduct when managing measurement activities | I24: 0 | K24: PARTIAL
B25: Behaviours
A26: B1 | B26: Is positive, innovative and proactive, suggesting and embracing change in order to improve quality and performance | I26: =IF(D26:D33 = "FULLY MET",1,IF(D26:D33 = "PARTIALLY MET",0.5,IF(D26:D33 = "NOT MET",0,))) -> 0 | K26: NONE
A27: B2 | B27: Demonstrates drive and resilience, has a strong focus on quality, delivery, completion and customer satisfaction, constantly seeking to maximise and improve own and others performance. | I27: 0 | K27: PARTIAL
A28: B3 | B28: Is inquisitive and conscientious, seeking feedback from customers and stakeholders, considering its impact on own area of responsibility, the organisation and the industry | I28: 0 | K28: PARTIAL
A29: B4 | B29: Acts as a role model and coach, manages resources consistently, promoting organisational effectiveness and efficiency | I29: 0 | K29: PARTIAL
A30: B5 | B30: Makes decisions using personal initiative, analysis and technical knowledge and can make sense of complex situations, with a high level of attention to detail. | I30: 0 | K30: NONE
A31: B6 | B31: Is reliable and takes responsibility for any direct reports, and own actions and decisions | I31: 0 | K31: PARTIAL
A32: B7 | B32: Is confident and has the ability to represent, and champion own, organisational and industry views, needs and objectives. Can challenge the status quo, as required | I32: 0 | K32: PARTIAL
A33: B8 | B33: Is Committed to continuous professional development, keeps up to date with advances in measurement science and expands own Metrology skills and knowledge through a variety of methods | I33: 0 | K33: NONE
I36: Gross score | J36: =SUM(J5:J33) -> 0 | K36: Net Score | L36: =SUM(L5:L33) -> 0
I37: total KSB coverage | J37: =J36/L40 -> 0 | K37: total CoE KSB coverage | L37: =L36/L43 -> 0
K40: total KSBs | L40: 27
K41: fully mitigated | L41: 0
K42: partialy mitigated | L42: 13
K43: net KSB | L43: =L40-L41-(L42*0.5) -> 20.5

Sheet ST0287
B1: Associate ambulance practitioner (Level 4)
B2: Return to Guide
A3: KSB | B3: KSB Statement | C3: Detailed page/paragraph reference | D3: KSB coverage | E3: Evidence | F3: Assessment method | G3: Supporting comments/rationale | H3: Documents Present | I3: AB Score | J3: IM Score | K3: Mitigations | L3: CoE Score | M3: Requirement | N3: IM Comment | O3: G7 QA | P3: IM G7 Response | Q3: Conclusion
B4: Knowledge
B5: Core Knowledge
A6: K1 | B6: How the AAP role engages in supporting the organisation in delivering high quality care and meeting its targets. | I6: =IF(D6:D13 = "FULLY MET",1,IF(D6:D13 = "PARTIALLY MET",0.5,IF(D6:D13 = "NOT MET",0,))) -> 0 | K6: NONE
A7: K2 | B7: How to develop and use a personal & professional development plan including the importance of reflective practice. | I7: 0 | K7: NONE
A8: K3 | B8: How to communicate effectively, including writing clear, concise information. | I8: 0 | K8: NONE
A9: K4 | B9: The importance of health, safety and dynamic risk assessments. How to report incidents, near misses and follow the correct processes to promote health and safety at work. | I9: 0 | K9: NONE
A10: K5 | B10: The organisation’s safeguarding procedures and to protect individuals and groups including referral through the appropriate routes. | I10: 0 | K10: NONE
A11: K6 | B11: How to promote person centred approaches and know how to work and adhere to relevant codes of practice and ethics. | I11: 0 | K11: NONE
A12: K7 | B12: How to practice and follow information governance by understanding data protection, Caldicott regulations and other legislation. | I12: 0 | K12: NONE
A13: K8 | B13: How to follow policies and procedures in relation to infection prevention & control. The importance of treating patients and their carers with privacy & dignity | I13: 0 | K13: NONE
A14: - | B14: Moving & Handling, Light Rescue, Extrication & Environmental Safety
A15: K9 | B15: How to undertake dynamic risk assessments prior to moving & positioning individuals in accordance with their care plan, as well as using equipment and other items safely. | I15: =IF(D15:D17 = "FULLY MET",1,IF(D15:D17 = "PARTIALLY MET",0.5,IF(D15:D17 = "NOT MET",0,))) -> 0 | K15: NONE
A16: K10 | B16: The Health & Safety at Work Act and related regulations. They will know how to manage their own safety and that of others in a range of environments. | I16: 0 | K16: NONE
A17: K11 | B17: How to perform a range of light rescue and extrication techniques responsibly and in a safe and effective manner. Understand the meaning of Common Law and know what criteria must be met to undertake gaining an entry with good intent. | I17: 0 | K17: NONE
A18: - | B18: Assessment & Physiological
A19: K12 | B19: How to follow a stepwise and holistic approach to patient assessment by understanding and applying codes of practice and ethics, etc. Understand how to carry out and interpret a range of physiological measurements. Know how to make appropriate changes or recommendations to the treatment plan as directed. | I19: =IF(D19 = "FULLY MET",1,IF(D19 = "PARTIALLY MET",0.5,IF(D19 = "NOT MET",0,))) -> 0 | K19: NONE
A20: - | B20: Measurements, Administration of Medications, Treatment & Intervention, Safe discharging & referrals
A21: K13 | B21: How to operate under given exemptions, clinical guidelines and will understand their own restrictions of the administration of medications in accordance with the AAP’s scope of practice. They will know how to prepare medications and undertake the relevant safety checks prior to administration. They will know and understand how to use UK Ambulance Service Clinical Practice Guidelines and other documents to support the AAP role. | I21: =IF(D21:D22 = "FULLY MET",1,IF(D21:D22 = "PARTIALLY MET",0.5,IF(D21:D22 = "NOT MET",0,))) -> 0 | K21: NONE
A22: K14 | B22: How to manage the acute care of service users and others across the age ranges, to include: airway management, intermediate life support, wounds & bleeding, burns & scalds, medical conditions, bones-joints-ligaments-tendons injuries, use of medical gases, babies & children, pregnancy & child birth, hostile & major incidents, substances hazardous to health, care for the elderly, pain management by understanding all SOPs, policies, procedures and guidelines. The necessity of safety netting prior to discharging following organisation’s referral pathways including completion of relevant documentation. Know how to create clear & concise records to support all referrals to all agencies. | I22: 0 | K22: NONE
A23: - | B23: Mental Health, Mental Capacity, Dementia & Learning Disability, End of Life & Bereavement
A24: K15 | B24: The importance of promoting mental health and wellbeing; understand the current Mental Health Act and the roles of other partner agencies. | I24: =IF(D24:D27 = "FULLY MET",1,IF(D24:D27 = "PARTIALLY MET",0.5,IF(D24:D27 = "NOT MET",0,))) -> 0 | K24: NONE
A25: K16 | B25: How to undertake the diagnostic and functional assessment of mental capacity and respond appropriately, acting in the best interest of the service user at all times. | I25: 0 | K25: NONE
A26: K17 | B26: Understand and be able to support those with dementia and learning disabilities. | I26: 0 | K26: NONE
A27: K18 | B27: How to support individuals across the age ranges with an end of life care plan in a compassionate and supportive manner. They will be able to identify and respond to their own and others feelings when dealing with bereavement. | I27: 0 | K27: NONE
A28: - | B28: Intermediate Life Support & assisting the registered practitioner
A29: K19 | B29: How to effectively perform intermediate life support for individuals across the age ranges using appropriate equipment and techniques safely. | I29: =IF(D29:D32 = "FULLY MET",1,IF(D29:D32 = "PARTIALLY MET",0.5,IF(D29:D32 = "NOT MET",0,))) -> 0 | K29: NONE
A30: K20 | B30: Know what equipment a registered practitioner will need to effectively apply the skill of Intubation, Cannulation, and Fluid Therapy. | I30: 0 | K30: NONE
A31: K21 | B31: How to assist when required within own scope of practice. | I31: 0 | K31: NONE
A32: K22 | B32: Know what drug therapy is needed by the registered practitioner when dealing with service users in cardiac arrest. | I32: 0 | K32: NONE
A33: - | B33: Driving & electronic communication
A34: K23 | B34: How to operate a range of electronic devices to communicate effectively with all colleagues internally and externally. | I34: =IF(D34:D35 = "FULLY MET",1,IF(D34:D35 = "PARTIALLY MET",0.5,IF(D34:D35 = "NOT MET",0,))) -> 0 | K34: NONE
A35: K24 | B35: How to prepare a range of vehicles prior to use, operate and drive safely at all times adhering to legislation, Highway Code and policies. | I35: 0 | K35: NONE
B36: Skills
A37: S1 | B37: Core skills - Engage in organisational effectiveness, and personal & professional development by using & promoting: Effective communication; conflict resolution training; equality & inclusion; implementation of health & safety; safeguarding and protecting individuals and groups; person centred approaches; good practice in information governance; infection prevention & control measures; duty of care and patient’s privacy & dignity. | I37: =IF(D37:D43 = "FULLY MET",1,IF(D37:D43 = "PARTIALLY MET",0.5,IF(D37:D43 = "NOT MET",0,))) -> 0 | K37: PARTIAL
A38: S2 | B38: Moving & Handling - Undertake risk assessment prior to moving & positioning individuals, using equipment and other items safely. | I38: 0 | K38: NONE
A39: S3 | B39: Assessment & Measurements - Follow a stepwise and holistic approach to patient assessment, undertaking a range of physiological measurements using appropriate equipment in a safe and effective manner. | I39: 0 | K39: NONE
A40: S4 | B40: Assessment and Measurements - Make appropriate changes or recommendations to the treatment plan within their scope of practice, reporting changes where applicable and necessary. | I40: 0 | K40: NONE
A41: S5 | B41: Treatment and Intervention - Manage service users and others across the age ranges - from babies & children to care for the elderly - within the emergency & urgent care setting, to include: airway, respiratory & circulatory management; wounds & bleeding; burns & scalds; medical conditions; bones-joints-ligaments-tendons injuries; use of medical gases; pregnancy & child birth; hostile & major incidents; substances hazardous to health and pain management. | I41: 0 | K41: PARTIAL
A42: S6 | B42: Intermediate Life Support and Assisting the practitioner - Perform intermediate life support for individuals across the age ranges using appropriate equipment and techniques safely and effectively. Assist the practitioner in the skills of Cannulation, Fluids Treatment and Intubation, including the preparation of live saving drugs, using the skills necessary to deliver effective medicines management criteria. | I42: 0 | K42: FULL
A43: S7 | B43: Light rescue and Extrication - Perform a range of light rescue and extrication techniques in a safe and effective manner, using a range of equipment. | I43: 0 | K43: NONE
B44: Behaviours
A45: B1 | B45: Patient centred - Be professional and passionate about the emergency and urgent care services; have a commitment to quality and care for service users and their relatives, a positive attitude in helping to improve patient care/experience, learning from successes and mistakes in line with the NHS Constitution. | I45: =IF(D45:D50 = "FULLY MET",1,IF(D45:D50 = "PARTIALLY MET",0.5,IF(D45:D50 = "NOT MET",0,))) -> 0 | K45: NONE
A46: B2 | B46: Dygnity and respect for all - Show understanding and be respectful of all service users, carers and all those who the AAP come into contact with. The AAP will promote equality of opportunity and celebrate diversity, demonstrating high standards of behaviour and conduct with honesty and openness at all times. | I46: 0 | K46: PARTIAL
A47: B3 | B47: Teamwork - Work closely and collaboratively with others of all levels in an open/honest and supportive way, acting in the best interest of the service users and others. Promoting teamwork and taking a genuine interest in those whom we work with, offering support and guidance when it is needed. Inspire each other to work together to create better services. | I47: 0 | K47: PARTIAL
A48: B4 | B48: Care and compassion - Deliver a first class service which is responsive to individual needs, recognising and celebrating good performance, striving to maintain a positive, safe, caring and compassionate working environment for all. Ensure that compassion is central to the care provided with humanity and kindness. | I48: 0 | K48: PARTIAL
A49: B5 | B49: Effective communication - Be open and honest with individuals choosing the most appropriate way of communicating, using everyday language, avoiding jargon. Respect confidentiality and personal information about service users and others. | I49: 0 | K49: PARTIAL
A50: B6 | B50: Competence - Be personally responsible for own learning and development. Engage with advancing technologies, maximising learning opportunities. Encourage and support others in their personal development to increase and maintain high levels of competency. | I50: 0 | K50: PARTIAL
I53: Gross score | J53: =SUM(J6:J50) -> 0 | K53: Net Score | L53: =SUM(L6:L50) -> 0
I54: total KSB coverage | J54: =J53/L57 -> 0 | K54: total CoE KSB coverage | L54: =L53/L60 -> 0
K57: total KSBs | L57: 37
K58: fully mitigated | L58: 1
K59: partialy mitigated | L59: 7
K60: net KSB | L60: =L57-L58-(L59*0.5) -> 32.5

Sheet ST0431
B1: Rehabilitation worker (visual impairment) (Level 5)
B2: Return to Guide
A3: KSB | B3: KSB Statement | C3: Detailed page/paragraph reference | D3: KSB coverage | E3: Evidence | F3: Assessment method | G3: Supporting comments/rationale | H3: Documents Present | I3: AB Score | J3: IM Score | K3: Mitigations | L3: CoE Score | M3: Requirement | N3: IM Comment | O3: G7 QA | P3: IM G7 Response | Q3: Conclusion
B4: Knowledge
A5: - | B5: Visual Impairment -
A6: K1 | B6: Anatomy, epidemiology, cause and prognosis of visual impairment and Deafblindness. | I6: =IF(D6:D8 = "FULLY MET",1,IF(D6:D8 = "PARTIALLY MET",0.5,IF(D6:D8 = "NOT MET",0,))) -> 0 | K6: NONE
A7: K2 | B7: The cumulative effect of physiological and psychological illness or disability when combined with a visual impairment | I7: 0 | K7: NONE
A8: K3 | B8: Relevance and value of Individual and social models of disability. The physical, psychological and social impact of a loss of vision | I8: 0 | K8: NONE
A9: - | B9: Assessment -
A10: K4 | B10: Voluntary & statutory process, procedure and legal requirement to assess people with a visual impairment and/or deafblind | I10: =IF(D10:D12 = "FULLY MET",1,IF(D10:D12 = "PARTIALLY MET",0.5,IF(D10:D12 = "NOT MET",0,))) -> 0 | K10: NONE
A11: K5 | B11: Risk, benefits and personal management | I11: 0 | K11: NONE
A12: K6 | B12: Individual, family and societal aspirations and needs of fulfilment. The value, availability and use of health and safety adaptations The process, documentation and application of access audits | I12: 0 | K12: NONE
A13: - | B13: Rehabilitation -
A14: K7 | B14: Theories and models of person centred therapeutic rehabilitative intervention Group and Individual teaching and learning theory and practice | I14: =IF(D14:D16 = "FULLY MET",1,IF(D14:D16 = "PARTIALLY MET",0.5,IF(D14:D16 = "NOT MET",0,))) -> 0 | K14: NONE
A15: K8 | B15: Person-centred intervention and strategy | I15: 0 | K15: NONE
A16: K9 | B16: Rehabilitation techniques and strategies including but not restricted to: Independent living skills; Inclusion in recreation, education and employment activities; orientation and mobility; communication; low vision maximisation. | I16: 0 | K16: NONE
A17: - | B17: Access to Information -
A18: K10 | B18: Health, education and employment advice Family and carers support services | I18: =IF(D18:D19 = "FULLY MET",1,IF(D18:D19 = "PARTIALLY MET",0.5,IF(D18:D19 = "NOT MET",0,))) -> 0 | K18: NONE
A19: K11 | B19: Welfare, statutory, voluntary and community services Professional roles relationships and boundaries | I19: 0 | K19: NONE
A20: - | B20: Technology -
A21: K12 | B21: The range, value and use of standard and assistive technology for use by people with a visual impairment and who are deafblind | I21: =IF(D21:D22 = "FULLY MET",1,IF(D21:D22 = "PARTIALLY MET",0.5,IF(D21:D22 = "NOT MET",0,))) -> 0 | K21: NONE
A22: K13 | B22: How to research, learn to interpret technology for use by disabled people | I22: 0 | K22: NONE
A23: - | B23: Legislation -
A24: K14 | B24: International, national and local equality, human rights, health, social care and safeguarding legislation | I24: =IF(D24 = "FULLY MET",1,IF(D24 = "PARTIALLY MET",0.5,IF(D24 = "NOT MET",0,))) -> 0 | K24: NONE
A25: - | B25: Professional Development -
A26: K15 | B26: The value, techniques and methods of gathering and assimilating research into practice | I26: =IF(D26:D27 = "FULLY MET",1,IF(D26:D27 = "PARTIALLY MET",0.5,IF(D26:D27 = "NOT MET",0,))) -> 0 | K26: NONE
A27: K16 | B27: Submission criteria and regulations for peer review publication | I27: 0 | K27: NONE
A28: - | B28: Skills Rehabilitation workers (Visual Impairment) will be able to:
A29: - | B29: Visual impairment -
A30: S1 | B30: Explain medical characteristics and the impact of visual impairment, secondary illnesses, disabilities and deafblindness in understandable terms, and descriptions. | I30: =IF(D30:D32 = "FULLY MET",1,IF(D30:D32 = "PARTIALLY MET",0.5,IF(D30:D32 = "NOT MET",0,))) -> 0 | K30: NONE
A31: S2 | B31: Evaluate, in terms of the support required, the effect a visual impairment and/or deafblindness has on a person, family and community. | I31: 0 | K31: NONE
A32: S3 | B32: Support a person, family and community to positively come to terms with living with a visual impairment and or deafblindness | I32: 0 | K32: PARTIAL
A33: - | B33: Assessment -
A34: S4 | B34: Undertake one-to-one and group specialist vision and dual sensory needs led assessments. producing tangible outcomes, services and referrals. | I34: =IF(D34:D37 = "FULLY MET",1,IF(D34:D37 = "PARTIALLY MET",0.5,IF(D34:D37 = "NOT MET",0,))) -> 0 | K34: FULL
A35: S5 | B35: Undertake assessment of risk and health and safety adaptations, recommending and overseeing installation of environmental adaptations required by people with a visual impairment and who are deafblind. | I35: 0 | K35: NONE
A36: S6 | B36: Undertake functional vision assessment, to promote the use of residual vision, and provide and refer for training and services. | I36: 0 | K36: NONE
A37: S7 | B37: Undertake environmental access audits that promote accessibility to the built environment for disabled people. | I37: 0 | K37: NONE
A38: - | B38: Rehabilitation -
A39: S8 | B39: Deliver group and individual person centred rehabilitative intervention in, but not restricted to, the following areas: Independent living skills for all aspects of daily living, personal care and home management; Strategies that facilitate and promote inclusion in recreation, education and employment activities; Orientation and mobility indoors and outdoors, including guiding skills, pre-cane skills, sensory travel skills, guide, symbol and long-cane skills, mobility aids, cognitive mapping, route-planning techniques, use of public transport and the use of technology that promotes independence and navigation ; Communication skills including braille, IT, smart and standard telecommunications, assistive technology, deafblind manual, block alphabet and audio equipment; Low vision training/therapy to maximise functional vision, magnifiers, lighting and other low vision aids and strategies | I39: =IF(D39 = "FULLY MET",1,IF(D39 = "PARTIALLY MET",0.5,IF(D39 = "NOT MET",0,))) -> 0 | K39: PARTIAL
A40: - | B40: Access to Information -
A41: S9 | B41: Deliver awareness training, information and support to people with a visual impairment and/or deafblind, employers, care providers and educational establishments, to improve access to statutory and voluntary social care services, health services, education and employment. | I41: =IF(D41 = "FULLY MET",1,IF(D41 = "PARTIALLY MET",0.5,IF(D41 = "NOT MET",0,))) -> 0 | K41: PARTIAL
A42: - | B42: Technology -
A43: S10 | B43: Deliver training, education and support to use assistive and standard technology to people with a visual impairment and people who are deafblind. | I43: =IF(D43 = "FULLY MET",1,IF(D43 = "PARTIALLY MET",0.5,IF(D43 = "NOT MET",0,))) -> 0 | K43: PARTIAL
A44: - | B44: Legislation -
A45: S11 | B45: Interpret legislation to empower people with a visual impairment and who are deafblind to live fulfilling lives | I45: =IF(D45 = "FULLY MET",1,IF(D45 = "PARTIALLY MET",0.5,IF(D45 = "NOT MET",0,))) -> 0 | K45: NONE
A46: - | B46: Professional Development -
A47: S12 | B47: Evaluate, through reflective practice, professional performance and development. Use professional knowledge to make appropriate decisions and judgements. | I47: =IF(D47 = "FULLY MET",1,IF(D47 = "PARTIALLY MET",0.5,IF(D47 = "NOT MET",0,))) -> 0 | K47: PARTIAL
A48: S13 | B48: Keep up-to-date, evaluate and assimilate research into practice. | I48: =IF(D48 = "FULLY MET",1,IF(D48 = "PARTIALLY MET",0.5,IF(D48 = "NOT MET",0,))) -> 0 | K48: NONE
A49: - | B49: Behaviours – The personal attributes and behaviours expected of all Rehabilitation Workers (Visual Impairment) when carrying out their role is to:
A50: B1 | B50: Safeguard – share information with others to protect and support the wellbeing of vulnerable people | I50: =IF(D50:D55 = "FULLY MET",1,IF(D50:D55 = "PARTIALLY MET",0.5,IF(D50:D55 = "NOT MET",0,))) -> 0 | K50: PARTIAL
A51: B2 | B51: Advocate – act for and on behalf of vulnerable individuals, their carers, family and circle of support | I51: 0 | K51: PARTIAL
A52: B3 | B52: Be Compassionate – deliver support with kindness, consideration, dignity, empathy and respect | I52: 0 | K52: PARTIAL
A53: B4 | B53: Communication – communicate for effective development of successful relationships | I53: 0 | K53: NONE
A54: B5 | B54: Show Commitment – improve the experience of people who need support ensuring it is person-centred | I54: 0 | K54: PARTIAL
A55: B6 | B55: Respect – value professional opinion, confidentiality and respectful relationships | I55: 0 | K55: PARTIAL
I58: Gross score | J58: =SUM(J6:J55) -> 0 | K58: Net Score | L58: =SUM(L6:L55) -> 0
I59: total KSB coverage | J59: =J58/L62 -> 0 | K59: total CoE KSB coverage | L59: =L58/L65 -> 0
K62: total KSBs | L62: 35
K63: fully mitigated | L63: 1
K64: partialy mitigated | L64: 10
K65: net KSB | L65: =L62-L63-(L64*0.5) -> 29

Sheet ST0542
B1: Oral health practitioner (Level 4)
B2: Return to Guide
A3: KSB | B3: KSB Statement | C3: Detailed page/paragraph reference | D3: KSB coverage | E3: Evidence | F3: Assessment method | G3: Supporting comments/rationale | H3: Documents Present | I3: AB Score | J3: IM Score | K3: Mitigations | L3: CoE Score | M3: Requirement | N3: IM Comment | O3: G7 QA | P3: IM G7 Response | Q3: Conclusion
B4: Knowledge
A5: - | B5: Care of the individual
A6: K1 | B6: How to apply the legislation, policies and local ways of working related to your role What person centred care, valid consent, duty of care, safeguarding, diversity, equality and inclusion mean and why they are important | I6: =IF(D6:D7 = "FULLY MET",1,IF(D6:D7 = "PARTIALLY MET",0.5,IF(D6:D7 = "NOT MET",0,))) -> 0 | K6: NONE
A7: K2 | B7: Relevant dental oral and craniofacial anatomy and physiology and their application to patient management | I7: 0 | K7: NONE
A8: - | B8: Clinical Practice
A9: K3 | B9: The range of normal human structures and functions, with particular reference to dental caries, oral medicine, periodontal disease and dental treatment and how this relates to working in the mouth | I9: =IF(D9:D18 = "FULLY MET",1,IF(D9:D18 = "PARTIALLY MET",0.5,IF(D9:D18 = "NOT MET",0,))) -> 0 | K9: NONE
A10: K4 | B10: A range of preventative oral and general health procedures used in your role. How to select techniques according to the individual’s need. | I10: 0 | K10: NONE
A11: K5 | B11: How to adapt your techniques and solve problems to suit individuals with special requirements, within your area of competence | I11: 0 | K11: NONE
A12: K6 | B12: How to maintain a clinical environment. How to control and prevent infection. The x-rays, photos and records you are required to take and keep | I12: 0 | K12: NONE
A13: K7 | B13: A range of general health screening activities related to your role and the population you work with eg recognising an abnormality and referring appropriately | I13: 0 | K13: NONE
A14: K8 | B14: Normal parameters associated with blood pressure and blood sugar levels. How to carry out physiological measurements and what steps to take if results are outside the norm | I14: 0 | K14: NONE
A15: K9 | B15: How, why and when to take and process finger-prick blood samples. | I15: 0 | K15: NONE
A16: K10 | B16: Which other services are available in your area, what they provide and how people can access them | I16: 0 | K16: NONE
A17: K11 | B17: Legislation on prescription-only medicines | I17: 0 | K17: NONE
A18: K12 | B18: The types of medical emergency that may arise and ways to address them. | I18: 0 | K18: NONE
A19: - | B19: Community based oral health
A20: K13 | B20: General health systems and be able to review their relationship to oral health using high quality evidence such as research documents | I20: =IF(D20:D28 = "FULLY MET",1,IF(D20:D28 = "PARTIALLY MET",0.5,IF(D20:D28 = "NOT MET",0,))) -> 0 | K20: NONE
A21: K14 | B21: how to outline the basic principles of population health, including demographic, social, UK and international oral health trends; a range of common risk factors | I21: 0 | K21: NONE
A22: K15 | B22: Determinants of health inequalities and how they are measured | I22: 0 | K22: NONE
A23: K16 | B23: Guidelines for best practice including national and local health initiatives | I23: 0 | K23: NONE
A24: K17 | B24: The needs of different patient groups you work with across the age range including those who are nervous, have learning disabilities, have mental health conditions or phobias, require palliative care or have cognitive impairment such as dementia | I24: 0 | K24: NONE
A25: K18 | B25: How diet, nutrition and hydration link with systemic and oral health including obesity | I25: 0 | K25: NONE
A26: K19 | B26: Ways to encourage self-care and motivation | I26: 0 | K26: NONE
A27: K20 | B27: Behaviour change and the theories that underpin models of learning in individuals and groups to change behaviour | I27: 0 | K27: NONE
A28: K21 | B28: Theories and concepts of motivational interviewing; different ways to support behaviour change according to whether you are working with an individual (e.g. in dental surgery) or with carers (in schools, homes or care homes) or on a group basis | I28: 0 | K28: NONE
A29: - | B29: Communication
A30: K22 | B30: A range of methods of communicating with individuals across the age range. | I30: =IF(D30:D34 = "FULLY MET",1,IF(D30:D34 = "PARTIALLY MET",0.5,IF(D30:D34 = "NOT MET",0,))) -> 0 | K30: NONE
A31: K23 | B31: How to check you have been understood. | I31: 0 | K31: NONE
A32: K24 | B32: Barriers to communication and a range of ways to overcome them. | I32: 0 | K32: NONE
A33: K25 | B33: When to refer or escalate if something is outside of your scope of practice | I33: 0 | K33: NONE
A34: K26 | B34: GDC Guidelines for handling complaints | I34: 0 | K34: NONE
A35: - | B35: Professional Development
A36: K27 | B36: The principles relating to evidence-based approaches to learning, clinical and professional practice and decision making; including using a range of sources of evidence. | I36: =IF(D36:D38 = "FULLY MET",1,IF(D36:D38 = "PARTIALLY MET",0.5,IF(D36:D38 = "NOT MET",0,))) -> 0 | K36: NONE
A37: K28 | B37: The consequences of your actions, attitude and behaviour | I37: 0 | K37: NONE
A38: K29 | B38: How to assess and reflect upon your own capabilities and limitations | I38: 0 | K38: NONE
B39: Skills
A40: - | B40: Care of the Individual
A41: S1 | B41: Put patient’s interests first, maintaining a caring approach towards them | I41: =IF(D41:D44 = "FULLY MET",1,IF(D41:D44 = "PARTIALLY MET",0.5,IF(D41:D44 = "NOT MET",0,))) -> 0 | K41: NONE
A42: S2 | B42: Treat people with dignity, respecting their choices, gaining valid consent for all treatments and respecting confidentiality | I42: 0 | K42: NONE
A43: S3 | B43: Work autonomously in people’s mouths to take dental bacterial plaque indices and food debris scores | I43: 0 | K43: PARTIAL
A44: S4 | B44: Use a range of personal oral care tools | I44: 0 | K44: NONE
A45: - | B45: Clinical Practice
A46: S5 | B46: Autonomously plan practice sessions in the community | I46: =IF(D46:D56 = "FULLY MET",1,IF(D46:D56 = "PARTIALLY MET",0.5,IF(D46:D56= "NOT MET",0,))) -> 0 | K46: NONE
A47: S6 | B47: Prepare the clinical equipment and records for each session | I47: 0 | K47: NONE
A48: S7 | B48: Prepare and maintain a clinical environment, adhering to infection control and prevention | I48: 0 | K48: NONE
A49: S8 | B49: Prepare, mix and handle bio-materials | I49: 0 | K49: NONE
A50: S9 | B50: take dental bacterial plaque indices and food debris scores in the mouth of individuals | I50: 0 | K50: PARTIAL
A51: S10 | B51: Select preventative strategies that are appropriate to the individual and adapt appropriately for individuals with special requirements | I51: 0 | K51: PARTIAL
A52: S11 | B52: Undertake general health screening including checking for diabetes, taking blood pressure readings and taking finger-prick blood for blood tests | I52: 0 | K52: PARTIAL
A53: S12 | B53: Refer individuals to other services if necessary | I53: 0 | K53: PARTIAL
A54: S13 | B54: Apply topical fluoride under prescription in the...? | I54: 0 | K54: PARTIAL
A55: S14 | B55: Carry out intra and extra oral photography | I55: 0 | K55: NONE
A56: S15 | B56: Recognise and manage medical emergencies | I56: 0 | K56: PARTIAL
A57: - | B57: Community based oral health
A58: S16 | B58: Plan clinical preventative session | I58: =IF(D58:D65 = "FULLY MET",1,IF(D58:D65 = "PARTIALLY MET",0.5,IF(D58:D65 = "NOT MET",0,))) -> 0 | K58: NONE
A59: S17 | B59: Deliver brief clinical preventative advice interventions to targeted groups | I59: 0 | K59: NONE
A60: S18 | B60: Encourage self-care and motivation | I60: 0 | K60: NONE
A61: S19 | B61: Provide oral and general systemic advice e.g. tobacco cessation or diet advice | I61: 0 | K61: NONE
A62: S20 | B62: Prepare, deliver and evaluate oral health messages to groups or individuals | I62: 0 | K62: NONE
A63: S21 | B63: Support individuals and groups to change their behaviour | I63: 0 | K63: NONE
A64: S22 | B64: Provide motivational interviews | I64: 0 | K64: NONE
A65: S23 | B65: Determine and implement strategies for improving oral health in the community. | I65: 0 | K65: NONE
A66: - | B66: Communication
A67: S24 | B67: Communicate effectively with and about patients, their representatives and the dental team, and with carers, other healthcare workers or schoolteachers | I67: =IF(D67:D69 = "FULLY MET",1,IF(D67:D69 = "PARTIALLY MET",0.5,IF(D67:D69 = "NOT MET",0,))) -> 0 | K67: PARTIAL
A68: S25 | B68: Escalate any issues when they are outside your scope of practice. | I68: 0 | K68: NONE
A69: S26 | B69: Handle complaints effectively and within GDC guidelines. | I69: 0 | K69: NONE
A70: - | B70: Professional Development
A71: S27 | B71: Manage your own time, resources and personal behaviour. | I71: =IF(D71:D72 = "FULLY MET",1,IF(D71:D72 = "PARTIALLY MET",0.5,IF(D71:D72 = "NOT MET",0,))) -> 0 | K71: NONE
A72: S28 | B72: Be proactive in your own development, willing to commit to lifelong learning by use of a Personal Development Plan (PDP), personal reflection and continuous improvement. | I72: 0 | K72: NONE
B73: Behaviours
A74: B1 | B74: You will treat people with dignity and respect. | I74: =IF(D74:D76 = "FULLY MET",1,IF(D74:D76 = "PARTIALLY MET",0.5,IF(D74:D76 = "NOT MET",0,))) -> 0 | K74: NONE
A75: B2 | B75: You will work as part of a team, having the courage to challenge areas of concern and working to evidence based best practice. | I75: 0 | K75: PARTIAL
A76: B3 | B76: You will be reliable and consistent, taking responsibility for the integrity of your own actions and completed work. | I76: 0 | K76: NONE
I79: Gross score | J79: =SUM(J6:J76) -> 0 | K79: Net Score | L79: =SUM(L6:L76) -> 0
I80: total KSB coverage | J80: =J79/L83 -> 0 | K80: total CoE KSB coverage | L80: =L79/L86 -> 0
K83: total KSBs | L83: 60
K84: fully mitigated | L84: 0
K85: partialy mitigated | L85: 9
K86: net KSB | L86: =L83-L84-(L85*0.5) -> 55.5

Sheet ST0543
B1: Clinical dental technician (integrated) (Level 5)
B2: Return to Guide
A3: KSB | B3: KSB Statement | C3: Detailed page/paragraph reference | D3: KSB coverage | E3: Evidence | F3: Assessment method | G3: Supporting comments/rationale | H3: Documents Present | I3: AB Score | J3: IM Score | K3: Mitigations | L3: CoE Score | M3: Requirement | N3: IM Comment | O3: G7 QA | P3: IM G7 Response | Q3: Conclusion
B4: Knowledge
A5: - | B5: Care of the individual:
A6: K1 | B6: Legislation, policies and local ways of working related to your role | I6: =IF(D6:D19 = "FULLY MET",1,IF(D6:D19 = "PARTIALLY MET",0.5,IF(D6:D19 = "NOT MET",0,))) -> 0 | K6: NONE
A7: K2 | B7: What valid consent, duty of care, safeguarding, diversity, equality and inclusion mean and why they are important | I7: 0 | K7: NONE
A8: K3 | B8: The needs of different patient groups including children, adults, older people and those with special needs. | I8: 0 | K8: NONE
A9: K4 | B9: Basic principles of population health, including demographic, social, UK and international oral health trends, determinants and inequalities of health and how they are measured. | I9: 0 | K9: NONE
A10: K5 | B10: Why it is important to record and store information securely and confidentially | I10: 0 | K10: NONE
A11: K6 | B11: How to recognise abnormalities of the oral cavity, holistically and, when appropriate, raise concerns. | I11: 0 | K11: NONE
A12: K7 | B12: The range of normal human structures and functions with particular reference to oral disease and treatment. | I12: 0 | K12: NONE
A13: K8 | B13: The potential routes of transmission of infectious agents, mechanisms for prevention of infection, the scientific principles of decontamination and disinfection and relevance to health and safety. | I13: 0 | K13: NONE
A14: K9 | B14: Your role in the replacement of lost teeth. | I14: 0 | K14: NONE
A15: K10 | B15: The principles and practice of patient assessment in regard to dental devices and appliances | I15: 0 | K15: NONE
A16: K11 | B16: Principles of an evidence-based approach to learning, clinical professional practice and decision-making. | I16: 0 | K16: NONE
A17: K12 | B17: The need for more complex treatment and when to seek appropriate advice from the dentist. | I17: 0 | K17: NONE
A18: K13 | B18: Patient and public safety including relevant regulations for dental radiography | I18: 0 | K18: NONE
A19: K14 | B19: The types of medical emergency that may arise and ways to address them. | I19: 0 | K19: NONE
A20: - | B20: Dental prostheses:
A21: K15 | B21: Identify appropriate dental devices based on own diagnoses and/or dentist input, while recognising oral limitations and their effect on devices; how to work with the patient to ensure any teeth selected are a suitable colour and design. | I21: =IF(D21:D29 = "FULLY MET",1,IF(D21:D29 = "PARTIALLY MET",0.5,IF(D21:D29 = "NOT MET",0,))) -> 0 | K21: NONE
A22: K16 | B22: Processes for taking impressions including bite registration devices and how to use this information when making up the next stage of denture construction. | I22: 0 | K22: NONE
A23: K17 | B23: How to fit or provide a range of devices and appliances for the oral cavity according to prescription including complete or partial dentures, sports guards and other prescribed dental devices | I23: 0 | K23: NONE
A24: K18 | B24: How the procedures you use in design and manufacture of custom-made devices; dentures, crowns, bridges, orthodontic (including CAD/ CAM & IT Solutions and the complexity of the denture attachment) influence the clinical relationship the device has with the patient’s mouth and existing teeth. Know and understand the how the use of CAD/CAM, IT solutions and emerging 3D Technology may be of use in appliance planning. | I24: 0 | K24: NONE
A25: K19 | B25: The limitations of your own role in relation to prescribing, fitting and providing dental devices including complete or partial dentures, sports mouth guards and other appliances, including when you can only carry out activities based on a prescription from a dentist. | I25: 0 | K25: NONE
A26: K20 | B26: How design of devices contributes to restoration of functionality and oral health, including the possible biomechanical effects in the mouth caused by selecting and using different materials for custom made dental devices. | I26: 0 | K26: NONE
A27: K21 | B27: Ways to evaluate patients changing requirements and when to seek advice or refer patients to the prescribing dentist | I27: 0 | K27: NONE
A28: K22 | B28: Quality assurance processes; how to repair or modify a range of dental devices in line with the appropriate Medical Device Directive | I28: 0 | K28: NONE
A29: K23 | B29: Delivery of oral health care and preventive information to encourage self-care and motivation. | I29: 0 | K29: NONE
A30: - | B30: Communication:
A31: K24 | B31: A range of methods of communicating with individuals across the age range including how to check you have been understood, barriers to communication and ways to overcome them. | I31: =IF(D31:D36 = "FULLY MET",1,IF(D31:D36 = "PARTIALLY MET",0.5,IF(D31:D36 = "NOT MET",0,))) -> 0 | K31: NONE
A32: K25 | B32: Your role in communication with patients and wider team, including the importance of confidentiality | I32: 0 | K32: NONE
A33: K26 | B33: GDC Guidelines for Handling complaints | I33: 0 | K33: NONE
A34: K27 | B34: Your role as part of the dental and wider multi-disciplinary team | I34: 0 | K34: NONE
A35: K28 | B35: Your role in management, education and leadership | I35: 0 | K35: NONE
A36: K29 | B36: When to refer or escalate if something is outside of your scope of practice or experience | I36: 0 | K36: NONE
A37: - | B37: Professional development:
A38: K30 | B38: Industry standards, guidelines and GDC compliance requirements relating to your role, why it is important to commit to lifelong learning; how to use a Personal Development Plan and personal reflection as a means of continuous improvement | I38: =IF(D38 = "FULLY MET",1,IF(D38 = "PARTIALLY MET",0.5,IF(D38 = "NOT MET",0,))) -> 0 | K38: NONE
B39: Skills
A40: - | B40: Care of the individual:
A41: S1 | B41: Treat people with dignity, respecting their choices, gaining valid consent for all treatments and respecting confidentiality. | I41: =IF(D41:D50 = "FULLY MET",1,IF(D41:D50 = "PARTIALLY MET",0.5,IF(D41:D50 = "NOT MET",0,))) -> 0 | K41: NONE
A42: S2 | B42: Put the patients’ interests first when taking clinical decisions, maintaining a caring approach towards them. | I42: 0 | K42: NONE
A43: S3 | B43: Take detailed dental, social and medical history and keep full, accurate and contemporaneous patient records. | I43: 0 | K43: NONE
A44: S4 | B44: Carry out clinical examinations within your scope of practice, recognising abnormal oral mucosa(2) and related underlying structures and refer patients, where necessary. | I44: 0 | K44: PARTIAL
A45: S5 | B45: Manage safety, infection control and decontamination risks around the clinical environment and the dental laboratory in keeping with current regulations. | I45: 0 | K45: PARTIAL
A46: S6 | B46: Perform effective patient assessment, diagnosis and treatment planning. | I46: 0 | K46: PARTIAL
A47: S7 | B47: Demonstrate effective clinical decision making. | I47: 0 | K47: PARTIAL
A48: S8 | B48: Give appropriate patient advice including patient referrals. | I48: 0 | K48: PARTIAL
A49: S9 | B49: Provide clinical dental care as outlined in a treatment plan or prescription and plan the delivery in the most appropriate way. | I49: 0 | K49: PARTIAL
A50: S10 | B50: Recognise and manage medical emergencies. | I50: 0 | K50: PARTIAL
A51: - | B51: Dental prostheses:
A52: S11 | B52: Perform technical and clinical dental procedures for providing removable dental appliances, including assessing the patient’s mouth and tissues, and discussing with them the range of dentures or other removable dental devices that would best meet their needs | I52: =IF(D52:D59 = "FULLY MET",1,IF(D52:D59 = "PARTIALLY MET",0.5,IF(D52:D59 = "NOT MET",0,))) -> 0 | K52: PARTIAL
A53: S12 | B53: Take the appropriate impressions, ensuring they are fit for purpose | I53: 0 | K53: NONE
A54: S13 | B54: Design, manufacture and fit biomechanically sound complete or partial dentures, devices and appliances for the oral cavity according to prescription | I54: 0 | K54: PARTIAL
A55: S14 | B55: Prescribe, provide or fit complete or partial dentures, sports mouth guards or other dental devices including using the agreed procedures in design and manufacture of custom made devices | I55: 0 | K55: PARTIAL
A56: S15 | B56: Advise the prescribing dentist on appropriate dental devices based on dentist input, while recognising oral limitations and their effect on devices. | I56: 0 | K56: PARTIAL
A57: S16 | B57: Evaluate the need for more complex treatment and seek advice from the prescribing dentist. | I57: 0 | K57: PARTIAL
A58: S17 | B58: Review and quality assure the devices from the clinical standpoint, including repairing or modifying custom made clinical dental devices to meet the needs of the patient. | I58: 0 | K58: PARTIAL
A59: S18 | B59: At the final fitting stage ensure that they are fit for purpose and the patient is aware of how to look after not only their dentures or other oral devices but their mouth in general. | I59: 0 | K59: NONE
A60: - | B60: Communication:
A61: S19 | B61: As the clinician responsible for the patient communicate effectively with and about patients, their representatives and the dental team. | I61: =IF(D61:D64 = "FULLY MET",1,IF(D61:D64 = "PARTIALLY MET",0.5,IF(D61:D64 = "NOT MET",0,))) -> 0 | K61: NONE
A62: S20 | B62: Handle complaints effectively and within GDC guidelines. | I62: 0 | K62: NONE
A63: S21 | B63: Work as part of team, maintaining networks with colleagues and other professionals. | I63: 0 | K63: PARTIAL
A64: S22 | B64: Be willing to give and receive effective and constructive feedback across the dental team | I64: 0 | K64: NONE
A65: - | B65: Professional development:
A66: S23 | B66: Manage your own time, resources and personal behaviour including being proactive in your own development | I66: =IF(D66 = "FULLY MET",1,IF(D66 = "PARTIALLY MET",0.5,IF(D66 = "NOT MET",0,))) -> 0 | K66: NONE
B67: Behaviours
A68: B1 | B68: You will treat people with dignity and respect | I68: =IF(D68:D70 = "FULLY MET",1,IF(D68:D70 = "PARTIALLY MET",0.5,IF(D68:D70 = "NOT MET",0,))) -> 0 | K68: NONE
A69: B2 | B69: You will work as part of a team, having the courage to challenge areas of concern and working to evidence based best practice | I69: 0 | K69: PARTIAL
A70: B3 | B70: You will be reliable and consistent, taking responsibility for the integrity of your own actions and completed work. | I70: 0 | K70: NONE
I73: Gross score | J73: =SUM(J6:J70) -> 0 | K73: Net Score | L73: =SUM(L6:L70) -> 0
I74: total KSB coverage | J74: =J73/L77 -> 0 | K74: total CoE KSB coverage | L74: =L73/L80 -> 0
K77: total KSBs | L77: 56
K78: fully mitigated | L78: 0
K79: partialy mitigated | L79: 15
K80: net KSB | L80: =L77-L78-(L79*0.5) -> 48.5

Sheet ST0583
B1: Mammography associate (Level 4)
B2: Return to Guide
A3: KSB | B3: KSB Statement | C3: Detailed page/paragraph reference | D3: KSB coverage | E3: Evidence | F3: Assessment method | G3: Supporting comments/rationale | H3: Documents Present | I3: AB Score | J3: AM Score | K3: Mitigations | L3: CoE Score | M3: Requirement | N3: AM Comment | O3: G7 QA | P3: AM G7 Response | Q3: Conclusion
B4: Knowledge
A5: - | B5: Clinical Mammography
A6: K1 | B6: Normal breast anatomy, physiology and pathology | I6: =IF(D6:D16 = "FULLY MET",1,IF(D6:D16 = "PARTIALLY MET",0.5,IF(D6:D16 = "NOT MET",0,))) -> 0 | K6: NONE
A7: K2 | B7: Principles of informed consent and the actions to take if consent is withdrawn | I7: 0 | K7: NONE
A8: K3 | B8: NHSBSP standards and quality assurance process | I8: 0 | K8: NONE
A9: K4 | B9: The role of other imaging and treatment modalities | I9: 0 | K9: NONE
A10: K5 | B10: The types of external abnormalities of the breasts that need to be observed and recorded | I10: 0 | K10: NONE
A11: K6 | B11: Effective positioning and immobilisation | I11: 0 | K11: NONE
A12: K7 | B12: Adaptation of technique to optimise image quality | I12: 0 | K12: NONE
A13: K8 | B13: Standards for assessing the technical quality of images | I13: 0 | K13: NONE
A14: K9 | B14: When it is necessary to refer to an appropriate member of the multi-disciplinary breast care team, including the supervisory radiographer | I14: 0 | K14: NONE
A15: K10 | B15: How to advise individuals of the results process and give additional information within the scope of your responsibility | I15: 0 | K15: NONE
A16: K11 | B16: Systems for image processing, storage and retrieval | I16: 0 | K16: NONE
A17: - | B17: Mammography Science
A18: K12 | B18: How radiation is produced and its interaction with matter | I18: =IF(D18:D23 = "FULLY MET",1,IF(D18:D23 = "PARTIALLY MET",0.5,IF(D18:D23 = "NOT MET",0,))) -> 0 | K18: NONE
A19: K13 | B19: The radiobiological effects of radiation - short and long term risks | I19: 0 | K19: NONE
A20: K14 | B20: Radiation protection of self and others | I20: 0 | K20: NONE
A21: K15 | B21: The relationship between anatomy, pathophysiology and the imaging process | I21: 0 | K21: NONE
A22: K16 | B22: The application of ionising radiation regulations | I22: 0 | K22: NONE
A23: K17 | B23: The basic design, function and operation of mammography image acquisition and display equipment | I23: 0 | K23: NONE
A24: - | B24: Quality Assurance
A25: K18 | B25: The principles and methods of quality control and quality assurance in mammography | I25: =IF(D25:D26 = "FULLY MET",1,IF(D25:D26 = "PARTIALLY MET",0.5,IF(D25:D26 = "NOT MET",0,))) -> 0 | K25: NONE
A26: K19 | B26: The relevant national standards and local guidelines for quality assurance | I26: 0 | K26: NONE
A27: - | B27: Professional Practice
A28: K20 | B28: The relevant legal, ethical, professional and local frameworks and protocols in the mammography context | I28: =IF(D28:D44 = "FULLY MET",1,IF(D28:D44 = "PARTIALLY MET",0.5,IF(D28:D44 = "NOT MET",0,))) -> 0 | K28: NONE
A29: K21 | B29: Principles of person-centred care | I29: 0 | K29: NONE
A30: K22 | B30: How to meet the care needs of individuals and their accompanying companions with sensitivity and respect | I30: 0 | K30: NONE
A31: K23 | B31: Principles of effective interpersonal and communication skills | I31: 0 | K31: NONE
A32: K24 | B32: How to exercise personal responsibility and work within defined parameters of practice, legislation and local policies | I32: 0 | K32: NONE
A33: K25 | B33: How to operate within your own scope of practice | I33: 0 | K33: NONE
A34: K26 | B34: The responsibilities and professional values of a mammography practitioner | I34: 0 | K34: NONE
A35: K27 | B35: The importance of personal health, resilience and wellbeing | I35: 0 | K35: NONE
A36: K28 | B36: The value of appropriately-timed health promotion interventions | I36: 0 | K36: NONE
A37: K29 | B37: Principles of audit and research | I37: 0 | K37: NONE
A38: - | B38: Team Working | I38: 0
A39: K30 | B39: The role and function of the multi-disciplinary breast care team | I39: 0 | K39: NONE
A40: K31 | B40: Principles of effective team-working | I40: 0 | K40: NONE
A41: - | B41: Health and Safety | I41: 0
A42: K32 | B42: Basic life support techniques | I42: 0 | K42: NONE
A43: K33 | B43: Principles of infection control, safe moving and handling, and other mandatory training requirements | I43: 0 | K43: NONE
A44: K34 | B44: How to maintain health and safety in the workplace | I44: 0 | K44: NONE
B45: Skills
A46: - | B46: Clinical Mammography
A47: S1 | B47: Positively identify individuals attending for mammography | I47: =IF(D47:D56 = "FULLY MET",1,IF(D47:D56 = "PARTIALLY MET",0.5,IF(D47:D56 = "NOT MET",0,))) -> 0 | K47: NONE
A48: S2 | B48: Prepare equipment and environments appropriately for mammography | I48: 0 | K48: NONE
A49: S3 | B49: Prepare individuals appropriately for mammography | I49: 0 | K49: NONE
A50: S4 | B50: Employ effective positioning and immobilisation to achieve images of high quality | I50: 0 | K50: NONE
A51: S5 | B51: Operate mammography equipment safely and effectively within protocol | I51: 0 | K51: PARTIAL
A52: S6 | B52: Refer to an appropriate member of the multi-disciplinary breast care team where required | I52: 0 | K52: PARTIAL
A53: S7 | B53: Assess the technical quality of images produced | I53: 0 | K53: NONE
A54: S8 | B54: Process and store images | I54: 0 | K54: NONE
A55: S9 | B55: Advise individuals of the results process and give any necessary additional information within the scope of your responsibility | I55: 0 | K55: NONE
A56: S10 | B56: Maintain comprehensive and accurate records of the procedure | I56: 0 | K56: NONE
A57: - | B57: Mammography Science
A58: S11 | B58: Maintain the radiation safety of all individuals in the working environment in line with current legislation | I58: =IF(D58:D61 = "FULLY MET",1,IF(D58:D61 = "PARTIALLY MET",0.5,IF(D58:D61 = "NOT MET",0,))) -> 0 | K58: PARTIAL
A59: S12 | B59: Work in accordance with ionising radiation regulations | I59: 0 | K59: FULL
A60: S13 | B60: Use information management systems effectively | I60: 0 | K60: NONE
A61: S14 | B61: Safely operate mammography equipment | I61: 0 | K61: PARTIAL
A62: - | B62: Quality Assurance
A63: S15 | B63: Participate in mammography quality control | I63: =IF(D63:D64 = "FULLY MET",1,IF(D63:D64 = "PARTIALLY MET",0.5,IF(D63:D64 = "NOT MET",0,))) -> 0 | K63: PARTIAL
A64: S16 | B64: Adhere to NHSBSP standards of performance | I64: 0 | K64: PARTIAL
A65: - | B65: Professional Practice
A66: S17 | B66: Practise safely within relevant legal, ethical, professional and local frameworks and protocols | I66: =IF(D66:D75 = "FULLY MET",1,IF(D66:D75 = "PARTIALLY MET",0.5,IF(D66:D75 = "NOT MET",0,))) -> 0 | K66: PARTIAL
A67: S18 | B67: Work individually, collaboratively and in partnership to deliver person-centred care | I67: 0 | K67: PARTIAL
A68: S19 | B68: Manage self and own work effectively | I68: 0 | K68: NONE
A69: S20 | B69: Apply effective interpersonal and communication skills to engage with individuals | I69: 0 | K69: NONE
A70: S21 | B70: Demonstrate accountability, recognising and responding appropriately to strengths and limitations in own knowledge, skills and attributes | I70: 0 | K70: NONE
A71: S22 | B71: Ensure own actions promote equality and diversity | I71: 0 | K71: NONE
A72: S23 | B72: Comply with legal, professional and local requirements for the delivery of clinical mammography | I72: 0 | K72: PARTIAL
A73: S24 | B73: Make use of supervision and pastoral care | I73: 0 | K73: NONE
A74: S25 | B74: Make use of reflective practice to engage in continuing professional development | I74: 0 | K74: NONE
A75: S26 | B75: Engage in effective health promotion | I75: 0 | K75: NONE
A76: - | B76: Team Working
A77: S27 | B77: Work effectively within the multi-disciplinary breast care team | I77: =IF(D77:D78 = "FULLY MET",1,IF(D77:D78 = "PARTIALLY MET",0.5,IF(D77:D78 = "NOT MET",0,))) -> 0 | K77: FULL
A78: S28 | B78: Promote a positive, safe and effective working environment | I78: 0 | K78: NONE
A79: - | B79: Health and Safety
A80: S29 | B80: Demonstrate proficiency in basic life-support techniques, infection control, safe moving and handling and other mandatory training requirements | I80: =IF(D80:D81 = "FULLY MET",1,IF(D80:D81 = "PARTIALLY MET",0.5,IF(D80:D81 = "NOT MET",0,))) -> 0 | K80: NONE
A81: S30 | B81: Safeguard individuals in accordance with legal and organisational requirements | I81: 0 | K81: PARTIAL
B82: Behaviours
A83: B1 | B83: Treat individuals with dignity, respecting their beliefs, culture, values and preferences | I83: =IF(D83:D86 = "FULLY MET",1,IF(D83:D86 = "PARTIALLY MET",0.5,IF(D83:D86 = "NOT MET",0,))) -> 0 | K83: PARTIAL
A84: B2 | B84: Adopt an empathic approach and demonstrate discretion | I84: 0 | K84: PARTIAL
A85: B3 | B85: Demonstrate courage to challenge areas of concern | I85: 0 | K85: PARTIAL
A86: B4 | B86: Be adaptable and responsive to changing service needs | I86: 0 | K86: PARTIAL
I89: Gross score | J89: =SUM(J6:J86) -> 0 | K89: Net Score | L89: =SUM(L6:L86) -> 0
I90: total KSB coverage | J90: =J89/L93 -> 0 | K90: total CoE KSB coverage | L90: =L89/L96 -> 0
K93: total KSBs | L93: 68
K94: fully mitigated | L94: 2
K95: partialy mitigated | L95: 14
K96: net KSB | L96: =L93-L94-(L95*0.5) -> 59

Sheet ST0597 (hidden)
B1: Technician scientist (Level 5) | C1: DO NOT USE
B2: Return to Guide
A3: KSB | B3: KSB Statement | C3: Detailed page/paragraph reference | D3: KSB coverage | E3: Evidence | F3: Assessment method | G3: Supporting comments/rationale | H3: Documents Present | I3: AB Score | J3: AM Score | K3: CoE Score | L3: AM Comment | M3: G7 QA | N3: AM G7 Response | O3: Mitigations | P3: Requirement | Q3: Conclusion
B4: Knowledge
A5: K1 | I5: =IF(D5:D128 = "FULLY MET",1,IF(D5:D128 = "PARTIALLY MET",0.5,IF(D5:D128 = "NOT MET",0,))) -> 0
A6: K2 | I6: 0
A7: K3 | I7: 0
A8: K4 | I8: 0
A9: K5 | I9: 0
A10: K6 | I10: 0
A11: K7 | I11: 0
A12: K8 | I12: 0
B13: Skills | I13: 0
A14: S1 | I14: 0
A15: S2 | I15: 0
A16: S3 | I16: 0
A17: S4 | I17: 0
A18: S5 | I18: 0
A19: S6 | I19: 0
A20: S7 | I20: 0
A21: S8 | I21: 0
A22: S9 | I22: 0
A23: S10 | I23: 0
A24: S11 | I24: 0
A25: S12 | I25: 0
A26: S13 | I26: 0
B27: Behaviours | I27: 0
A28: B1 | I28: 0
A29: B2 | I29: 0
A30: B3 | I30: 0
A31: B4 | I31: 0
I32: 0
I33: 0
I34: 0
I35: 0
I36: 0
I37: 0
I38: 0
I39: 0
I40: 0
I41: 0
I42: 0
I43: 0
I44: 0
I45: 0
I46: 0
I47: 0
I48: 0
I49: 0
I50: 0
I51: 0
I52: 0
I53: 0
I54: 0
I55: 0
I56: 0
I57: 0
I58: 0
I59: 0
I60: 0
I61: 0
I62: 0
I63: 0
I64: 0
I65: 0
I66: 0
I67: 0
I68: 0
I69: 0
I70: 0
I71: 0
I72: 0
I73: 0
I74: 0
I75: 0
I76: 0
I77: 0
I78: 0
I79: 0
I80: 0
I81: 0
I82: 0
I83: 0
I84: 0
I85: 0
I86: 0
I87: 0
I88: 0
I89: 0
I90: 0
I91: 0
I92: 0
I93: 0
I94: 0
I95: 0
I96: 0
I97: 0
I98: 0
I99: 0
I100: 0
I101: 0
I102: 0
I103: 0
I104: 0
I105: 0
I106: 0
I107: 0
I108: 0
I109: 0
I110: 0
I111: 0
I112: 0
I113: 0
I114: 0
I115: 0
I116: 0
I117: 0
I118: 0
I119: 0
I120: 0
I121: 0
I122: 0
I123: 0
I124: 0
I125: 0
I126: 0
I127: 0
I128: 0

Sheet ST0600
B1: Hearing aid dispenser (Level 5)
B2: Return to Guide
A3: KSB | B3: KSB Statement | C3: Detailed page/paragraph reference | D3: KSB coverage | E3: Evidence | F3: Assessment method | G3: Supporting comments/rationale | H3: Documents Present | I3: AB Score | J3: IM Score | K3: Mitigations | L3: CoE Score | M3: Requirement | N3: IM Comment | O3: G7 QA | P3: IM G7 Response | Q3: Conclusion
B4: Knowledge
A5: K1 | B5: You must know and understand The Health and Care professions Council standards of proficiency and code of ethics for the Hearing Aid Dispenser role, including the requirements to obtain informed consent. | I5: =IF(D5:D61 = "FULLY MET",1,IF(D5:D61 = "PARTIALLY MET",0.5,IF(D5:D61 = "NOT MET",0,))) -> 0 | K5: NONE
A6: K2 | B6: You must know and understand the regulatory and professional body requirements for Data Protection, Diversity, Safeguarding and other legislation relevant to the role. | I6: 0 | K6: NONE
A7: K3 | B7: Know and Understand the Health and Care Professions Council 'Standards for Continuous Professional Development and how to reflect on own practice to maintain knowledge, skills and behaviours required for current and future practice. | I7: 0 | K7: NONE
A8: K4 | B8: Know the different types of learning and activity that contribute to continuing professional development and how to access and evaluate both structured and unstructured learning opportunities. | I8: 0 | K8: NONE
A9: K5 | B9: Know how to share information, findings and ideas through a range of media and to different audiences to allow the implementation of learnings to the benefit of the service user. | I9: 0 | K9: NONE
A10: K6 | B10: Know and understand how to use effective communication to explore aural health and hearing related matter with service users, their families and the wider care team. | I10: 0 | K10: NONE
A11: K7 | B11: Know and understand the indicators and responses that signal the need for further questioning or onward referral. | I11: 0 | K11: NONE
A12: K8 | B12: To know how to document case history findings, within your employers operating system and the process for onward referral. | I12: 0 | K12: PARTIAL
A13: K9 | B13: To understand the role that family members and other communication partners have when conducting a case history,and the importance of their participation. | I13: 0 | K13: NONE
A14: K10 | B14: To understand the professional and regulatory requirements for full, accurate and contemporaneous notes in compiling and maintaining case histories. | I14: 0 | K14: NONE
A15: K11 | B15: To know and understand the anatomical and physiological workings of the ear and associated systems to a level sufficient to converse with end users and other members of the profession. | I15: 0 | K15: NONE
A16: K12 | B16: To know and understand the pathology of the ear and associated systems to a level sufficient to converse with end users and other members of the profession. | I16: 0 | K16: NONE
A17: K13 | B17: To know and understand the effects that medical and pharmacological treatments can have on hearing health to a level sufficient to discuss with end users and other members of the profession. | I17: 0 | K17: NONE
A18: K14 | B18: To know and understand the British Society of Audiology (BSA) recommended procedure for conducting otoscopy. | I18: 0 | K18: NONE
A19: K15 | B19: To know and understand the choice of instruments and methods available with which to conduct otoscopy together with the associated advantages and disadvantages of each. | I19: 0 | K19: NONE
A20: K16 | B20: Know and understand what ear wax is and how is it made. | I20: 0 | K20: NONE
A21: K17 | B21: Know and understand the advantages and disadvantages of different ear wax removal procedures. | I21: 0 | K21: NONE
A22: K18 | B22: Know and understand when to cease or change the procedure in line with professional scope of practice. | I22: 0 | K22: NONE
A23: K19 | B23: Know and understand the organisations escalation procedure including onward referral pathways where relevant. | I23: 0 | K23: PARTIAL
A24: K20 | B24: To know and understand the choice of instruments and methods available with which to conduct pure tone audiometry together with the knowledge of the associated advantages and disadvantages of each. | I24: 0 | K24: NONE
A25: K21 | B25: To know and understand the requirements for equipment calibration and daily checks. | I25: 0 | K25: NONE
A26: K22 | B26: To know and understand the difference between; conductive, sensory-neural and mixed hearing loss and how various pathologies result in different types of loss. | I26: 0 | K26: NONE
A27: K23 | B27: To know and understand the correct symbols and notation to use for plotting audiomteric results. | I27: 0 | K27: NONE
A28: K24 | B28: To know and understand the requirements for a suitable testing environment and the effects that ambient noise can have on the results. | I28: 0 | K28: NONE
A29: K25 | B29: To know and understand the role of Pre-test patient history questions, and the impact of the answers given on the choice of testing technique used. | I29: 0 | K29: NONE
A30: K26 | B30: To know and understand how to interpret audiometric measurement results and what actions to take. | I30: 0 | K30: NONE
A31: K27 | B31: Know and understand how to match the specific features and advantages of the employers range of products to the specific hearing and lifestyle needs of the end user in a way that provides them with benefit. | I31: 0 | K31: PARTIAL
A32: K28 | B32: Know and understand the financial implications of purchasing hearing instruments and how any available payment plans work. | I32: 0 | K32: NONE
A33: K29 | B33: Know and understand the arrangements and considerations of manufacturers warranty and additional insurance. | I33: 0 | K33: NONE
A34: K30 | B34: Know and understand the relevant consumer legislation; including statutory regulation and organisational additions in relation to retail sales. | I34: 0 | K34: NONE
A35: K31 | B35: Know and understand the impact of mental health and cognitive ability on decision making and informed choice. | I35: 0 | K35: NONE
A36: K32 | B36: Know understand how hearing instruments work and how changes in technology and the market impact on benefits to service users. | I36: 0 | K36: NONE
A37: K33 | B37: Know and understand how hearing instruments and assistive listening devices are promoted, advertised and market in the UK, including the relevant advertising standards. | I37: 0 | K37: NONE
A38: K34 | B38: Know and understand how revenue, cost of sale and other costs affect profitability in relation to the retail sale of hearing instruments and assistive listening devices. | I38: 0 | K38: NONE
A39: K35 | B39: To know and understand fitting formulae objectives and the impact of these on the fitting approach taken. | I39: 0 | K39: NONE
A40: K36 | B40: To know about the styles, features and specifications of Hearing Instrument and assistive technologies and understand their impact on the fitting objective. | I40: 0 | K40: NONE
A41: K37 | B41: To know and understand how to structure and provide content for an Individual management plan (IMP). | I41: 0 | K41: NONE
A42: K38 | B42: To know and understand validation measurers and protocols, and verification standards and protocols. | I42: 0 | K42: NONE
A43: K39 | B43: To know and understand how to create, update and complete a patient centred individual management plan. | I43: 0 | K43: NONE
A44: K40 | B44: To know and understand how the acclimatization and adaptation process effects the rehabilitation process and the steps taken to give the best outcomes to the patient. | I44: 0 | K44: NONE
A45: K41 | B45: To know and understand how different hearing aids and assistive listening devices are maintained, used and controlled. | I45: 0 | K45: NONE
A46: K42 | B46: To know and understand how to construct and complete an outcome questionnaire to validate hearing aid fitting. | I46: 0 | K46: NONE
A47: K43 | B47: To know and understand the employers range of assistive listening devices and how they work. | I47: 0 | K47: PARTIAL
A48: K44 | B48: To know and understand the British Society of Audiology Practice Guidance on Rehabilitation. | I48: 0 | K48: NONE
A49: K45 | B49: To understand the psychology of a person accepting a hearing loss, and hearing aids, and the impact of this on their family, friends and colleagues. | I49: 0 | K49: NONE
A50: K46 | B50: Have knowledge and understanding of different rehabilitation and auditory training tools, their benefits and limitations. | I50: 0 | K50: NONE
A51: K47 | B51: Have knowledge and understand of different communication strategies and differing approaches to improving listening abilities. | I51: 0 | K51: NONE
A52: K48 | B52: To understand the long term average speech spectrum and the impact on intelligibility with various hearing losses and the amplification strategy used. | I52: 0 | K52: NONE
A53: K49 | B53: Know and understand how to fault find and identify component failure. | I53: 0 | K53: NONE
A54: K50 | B54: Know and understand which aspects of repair need to be returned to the manufacturer and the employers process for completing this. | I54: 0 | K54: PARTIAL
A55: K51 | B55: Know and understand the combinations of consumable parts and the products they work with for the employers designated product range. | I55: 0 | K55: PARTIAL
A56: K52 | B56: To understand the role of history and lifestyle questions and how this will differ from initial assessments. | I56: 0 | K56: NONE
A57: K53 | B57: To know and understand the current version of British Society of Audiology Recommended Procedures for taking aural impressions including open jaw impressions. | I57: 0 | K57: NONE
A58: K54 | B58: To know and understand the variety and the properties of different impression materials and otostops for suitability of different end products and patients. | I58: 0 | K58: NONE
A59: K55 | B59: To know the contra-indications to taking impressions. | I59: 0 | K59: NONE
A60: K56 | B60: Know and understand the principles of time management and prioritisation differentiating between Important and Urgent tasks to achieve an appropriate work life balance. | I60: 0 | K60: NONE
A61: K57 | B61: Know and understand the criteria and measurers that will be used to judge the effectiveness and success of the HAD in their role. | I61: 0 | K61: NONE
B62: Skills
A63: S1 | B63: To be able to interpret, apply and evidence the practical application of all relevant Health and Care professions Council Standards into actions and behaviours. | I63: =IF(D63:D106 = "FULLY MET",1,IF(D63:D106 = "PARTIALLY MET",0.5,IF(D63:D106 = "NOT MET",0,))) -> 0 | K63: NONE
A64: S2 | B64: To be able to exercise a professional duty of care. | I64: 0 | K64: NONE
A65: S3 | B65: To maintain objective, professional and comprehensive records that clearly evidences gaining informed consent, activities delivered and accurately reflects all discussions and supports the continuity of end user care. | I65: 0 | K65: NONE
A66: S4 | B66: To be able to use a structured approach to building a Continuous Professional Development portfolio that meets regulatory requirements and follows Professional Body guidance. | I66: 0 | K66: NONE
A67: S5 | B67: To be able to engage in reflective practice appropriate to the role. | I67: 0 | K67: NONE
A68: S6 | B68: Effective communication skills; including questioning, active listening, observation and rapport with end users, carers, their families and the wider care team. | I68: 0 | K68: PARTIAL
A69: S7 | B69: To be able to confidently navigate and seamlessly use the employers selected patient/customer record system. | I69: 0 | K69: PARTIAL
A70: S8 | B70: Safely conduct otoscopy to British Society of Audiology standards and safely conduct physical ear examinations. | I70: 0 | K70: PARTIAL
A71: S9 | B71: Identify, report and advise on observed abnormalities for onward referral to another healthcare practitioner. | I71: 0 | K71: PARTIAL
A72: S10 | B72: Explain the results of the examination to the end user in a professional and empathetic manner advising on the most appropriate action to take and using the findings to inform the next stages of assessment. | I72: 0 | K72: PARTIAL
A73: S11 | B73: To respect physical and cultural barriers that may prevent the examination to be effectively conducted and make adjustments where practical and necessary. | I73: 0 | K73: NONE
A74: S12 | B74: Conduct safe, effective and appropriate ear wax removal. | I74: 0 | K74: PARTIAL
A75: S13 | B75: To take a relevant case history and record findings, specific to wax management, including; the nature and position of wax and the relevant case history and contra indicators to influence the selected removal approach. | I75: 0 | K75: NONE
A76: S14 | B76: To safely and effectively dispose of clinical waste. | I76: 0 | K76: NONE
A77: S15 | B77: To be able to conduct air conduction and bone conduction audiometry to British Society of Audiology recommended procedure. | I77: 0 | K77: NONE
A78: S16 | B78: To be able to interpret air conduction and bone conduction results to determine if masking rules apply and where necessary perform the masking procedure. | I78: 0 | K78: NONE
A79: S17 | B79: To be able to interpret the results obtained and make onward referral or determine service user care plan actions. | I79: 0 | K79: NONE
A80: S18 | B80: To be able to adapt testing procedure and explanations to suit different responses and avoid erroneous results, including where tinnitus is present. | I80: 0 | K80: NONE
A81: S19 | B81: To be able to explain the audiogram, results and any identified hearing loss to the person being tested. | I81: 0 | K81: NONE
A82: S20 | B82: To analyse audiometric results to select the most suitable technology to assist an end users hearing. | I82: 0 | K82: NONE
A83: S21 | B83: To program and set up a hearing product in a way that provides the best experience for the end user, their families or carers. | I83: 0 | K83: PARTIAL
A84: S22 | B84: To communicate with end users and their families or carers in a way that motivates them to want to take action, while respecting their individuality and competence in making informed choice. | I84: 0 | K84: NONE
A85: S23 | B85: The ability to evaluate service user feedback on amplification and how this will be incorporated into the fitting and Individual Management Plan. | I85: 0 | K85: NONE
A86: S24 | B86: To be able to use objective outcome verification and outcome validation methods and interpret the results to determine appropriate amplification objective and strategy. | I86: 0 | K86: NONE
A87: S25 | B87: To be able to construct and write up a individual management plan centred on patient needs with a joint decision making and goal setting approach. | I87: 0 | K87: PARTIAL
A88: S26 | B88: To be able to explain and demonstrate hearing aid maintenance and use to the service user. | I88: 0 | K88: NONE
A89: S27 | B89: To be able to set up assistive listening devices. | I89: 0 | K89: NONE
A90: S28 | B90: To be able to adjust or reprogram hearing aids as appropriate to the patient’s feedback provided at the rehabilitation appointment. | I90: 0 | K90: PARTIAL
A91: S29 | B91: To be able to use an array of hearing satisfaction outcome questionnaires. and objective verification methods. | I91: 0 | K91: NONE
A92: S30 | B92: To be able to access and interpret hearing aid data from built in usage log systems. | I92: 0 | K92: NONE
A93: S31 | B93: To be able to fine tune the programming of hearing aids to improve the end user experience. | I93: 0 | K93: PARTIAL
A94: S32 | B94: To be able to design a task orientated programme to support the improvement in communication skills of the end user and their support network. | I94: 0 | K94: NONE
A95: S33 | B95: Be able to conduct a systematic fault find of a hearing instrument using visual and electronic tests. | I95: 0 | K95: NONE
A96: S34 | B96: Perform hearing aid triage - Cleaning, maintaining and making simple repairs of hearing instruments. | I96: 0 | K96: NONE
A97: S35 | B97: To communicate with end users resulting in identifying their end goals with relation to their current hearing aids and hearing needs. | I97: 0 | K97: NONE
A98: S36 | B98: To be able update and record findings alongside reviewing any previous records to highlight any changes that may have occurred for the end user. | I98: 0 | K98: NONE
A99: S37 | B99: To communicate with end users and their families and/or carers in a way that will allow them to make an informed joint decision about their management plan. | I99: 0 | K99: NONE
A100: S38 | B100: To be able to explain the impression taking procedure to patient professionally and calmly. | I100: 0 | K100: NONE
A101: S39 | B101: To be able to insert a variety of otostops at the correct position for the required product and to seal ear canal. | I101: 0 | K101: PARTIAL
A102: S40 | B102: To be able to take an impression compliant to British Society of Audiology recommended procedures using a variety of impression materials and syringes. | I102: 0 | K102: NONE
A103: S41 | B103: To be able to identify when the impression is ready for removal and safely remove it without trauma to the ear. | I103: 0 | K103: NONE
A104: S42 | B104: To be able to advise and escalate actions, calmly, if an issue arises during the impression taking or removal procedure. | I104: 0 | K104: PARTIAL
A105: S43 | B105: To be able to inspect, examine and review the completed impression to assess it's viability for the supplier to use to manufacture the desired product. | I105: 0 | K105: NONE
A106: S44 | B106: Time management and prioritisation skills. | I106: 0 | K106: NONE
B107: Behaviours
A108: B1 | B108: Treat people with dignity, respecting individual's diversity, beliefs, culture, needs, values, privacy and preferences in an inclusive, person-centric approach that validates the Health and Care Professions Council's requirements for the role. | I108: =IF(D108:D111 = "FULLY MET",1,IF(D108:D111 = "PARTIALLY MET",0.5,IF(D108:D111 = "NOT MET",0,))) -> 0 | K108: PARTIAL
A109: B2 | B109: Show respect and empathy for those you work with, have the courage to challenge areas of concern and work to evidence based best practice. | I109: 0 | K109: PARTIAL
A110: B3 | B110: Be adaptable, reflective, reliable and consistent, show discretion, resilience, self-awareness and demonstrate leadership. | I110: 0 | K110: NONE
A111: B4 | B111: Be professional, confident, knowledgeable, caring, compassionate and sensitive to the needs and feelings of others, conscientious, honest and trustworthy. | I111: 0 | K111: PARTIAL
I114: Gross score | J114: =SUM(J5:J111) -> 0 | K114: Net Score | L114: =SUM(L5:L111) -> 0
I115: total KSB coverage | J115: =J114/L118 -> 0 | K115: total CoE KSB coverage | L115: =L114/L121 -> 0
K118: total KSBs | L118: 105
K119: fully mitigated | L119: 0
K120: partialy mitigated | L120: 21
K121: net KSB | L121: =L118-L119-(L120*0.5) -> 94.5

Sheet ST0701
B1: Orthodontic therapist (integrated) (Level 4)
B2: Return to Guide
A3: KSB | B3: KSB Statement | C3: Detailed page/paragraph reference | D3: KSB coverage | E3: Evidence | F3: Assessment method | G3: Supporting comments/rationale | H3: Documents Present | I3: AB Score | J3: IM Score | K3: Mitigations | L3: CoE Score | M3: Requirement | N3: IM Comment | O3: G7 QA | P3: IM G7 Response | Q3: Conclusion
B4: Knowledge
A5: K1 | B5: The General Dental Council scope of practice, your role as an orthodontic therapist and that of others in the dental team, local clinical guidelines and policies | I5: =IF(D5:D51 = "FULLY MET",1,IF(D5:D51 = "PARTIALLY MET",0.5,IF(D5:D51 = "NOT MET",0,))) -> 0 | K5: NONE
A6: K2 | B6: The principles of an evidence-based approach to learning, clinical and professional practice | I6: 0 | K6: NONE
A7: K3 | B7: Ways to maintain your professional knowledge and competence | I7: 0 | K7: NONE
A8: K4 | B8: The principles of clinical decision making and your role in the decision-making process | I8: 0 | K8: NONE
A9: K5 | B9: What is meant by patient-centred care, the importance of safeguarding and your duty of care, the signs of abuse or neglect including local and national systems and ways to raise concerns where appropriate | I9: 0 | K9: NONE
A10: K6 | B10: The scientific principles of medical ionizing radiation and statutory regulations | I10: 0 | K10: NONE
A11: K7 | B11: Current health and safety policy legislation related to your role as an orthodontic therapist | I11: 0 | K11: NONE
A12: K8 | B12: The range of contemporary orthodontic treatment options, their impact, outcomes, limitations and risks | I12: 0 | K12: NONE
A13: K9 | B13: The need for an accurate and current patient history, the importance of each component of the patient assessment process and the needs of different patient groups including children, adults, older people or those with special care requirements throughout the patient care process | I13: 0 | K13: NONE
A14: K10 | B14: The importance of an orthodontist’s s prescription | I14: 0 | K14: NONE
A15: K11 | B15: The cause of malocclusion and its possible impact of a poor bite or malpositioned teeth on medical, psychological and sociological aspects of health. | I15: 0 | K15: NONE
A16: K12 | B16: The potential routes of transmission of infectious agents in dental practice, mechanisms for the prevention of infection, the scientific principles of decontamination and disinfection and their relevance to health and safety | I16: 0 | K16: NONE
A17: K13 | B17: A range of communication methods, including verbal and non-verbal, listening skills and be aware of the barriers to communication | I17: 0 | K17: NONE
A18: K14 | B18: The importance of maintaining confidentiality and protecting all data relating to patients and their treatment | I18: 0 | K18: NONE
A19: K15 | B19: The need to explain and check patients’ and guardians’ understanding of treatments, options, costs and informed consent | I19: 0 | K19: NONE
A20: K16 | B20: How to manage anxiety or challenging behaviour including relevant behavioural change techniques | I20: 0 | K20: NONE
A21: K17 | B21: How to manage lines of communication within your team or with wider healthcare professions | I21: 0 | K21: NONE
A22: K18 | B22: The principles of information governance | I22: 0 | K22: NONE
A23: K19 | B23: The use of a range of communication methods and technologies and their appropriate application in support of clinical practice | I23: 0 | K23: NONE
A24: K20 | B24: The importance of and the need to maintain accurate and current records in accordance with legal and statutory requirements and best practice | I24: 0 | K24: NONE
A25: K21 | B25: The need to treat all patients equally, with respect and dignity, appreciating the importance of patient and guardian choice | I25: 0 | K25: NONE
A26: K22 | B26: Dental, craniofacial anatomy and physiology relevant to orthodontic therapy, the range of normal human structures and functions and the principles that derive from the biomedical, behavioural and materials sciences as they apply to the practice of orthodontic therapy | I26: 0 | K26: NONE
A27: K23 | B27: A range of orthodontic equipment, instruments, materials and appliances such as braces, retainers, headgear, face bows, pliers, archwires, brackets, bands, cements and adhesives including their uses and limitations | I27: 0 | K27: NONE
A28: K24 | B28: The scientific principles underpinning the use of biomaterials and their limitations with emphasis on those used in dentistry | I28: 0 | K28: NONE
A29: K25 | B29: Different types of adhesives and cement, when to use them and how to apply or remove them from teeth | I29: 0 | K29: NONE
A30: K26 | B30: Types of instruments for cleaning and preparing tooth surfaces | I30: 0 | K30: NONE
A31: K27 | B31: A range of orthodontic appliances such as fixed and removable braces and retainers, their use and ways to fit them | I31: 0 | K31: NONE
A32: K28 | B32: Problems associated with orthodontic appliances, how to recognise them and the appropriate action to take | I32: 0 | K32: NONE
A33: K29 | B33: How archwires that fit into appliances affect the patient’s mouth, teeth and overall wellbeing and when to change or repair them | I33: 0 | K33: NONE
A34: K30 | B34: When and why appliances should be removed in accordance with the prescription | I34: 0 | K34: NONE
A35: K31 | B35: The cause of oral disease in relation to dental decay and gum disease and basic facial structure formation with a focus on abnormalities and acute conditions that may arise | I35: 0 | K35: NONE
A36: K32 | B36: The significance of changes in patients reported oral health | I36: 0 | K36: NONE
A37: K33 | B37: A range of common oral health problems and the need for appropriate follow-up care | I37: 0 | K37: NONE
A38: K34 | B38: The principles of preventive care and the importance of providing patients with comprehensive and accurate preventive education and instruction | I38: 0 | K38: NONE
A39: K35 | B39: The role of health promotion, how health promotion strategies are implemented including demographic and social trends and the principles of planning oral health care for communities to meet needs and demands | I39: 0 | K39: NONE
A40: K36 | B40: Ways to encourage self-care and motivation, the health risks of poor diet, substance misuse and substances such as tobacco and alcohol on oral and general health | I40: 0 | K40: NONE
A41: K37 | B41: The need to monitor and review treatment outcomes including when to seek advice | I41: 0 | K41: NONE
A42: K38 | B42: The referral process, the management and organisation of local referral networks | I42: 0 | K42: NONE
A43: K39 | B43: The importance of an appropriate and timely referral | I43: 0 | K43: NONE
A44: K40 | B44: The types of medical emergencies that may occur and ways to deal with them | I44: 0 | K44: NONE
A45: K41 | B45: The risks around the clinical environment and manage these in a safe and efficient manner complying with current best practice guidelines | I45: 0 | K45: NONE
A46: K42 | B46: Your own role in relation to the rest of the dental team and to any trainees or students you may supervise including when to escalate and report | I46: 0 | K46: NONE
A47: K43 | B47: The importance of appraisal, training and ongoing review including ways to give and receive feedback | I47: 0 | K47: NONE
A48: K44 | B48: The importance of maintaining your own network of dental professionals, specialists and other stakeholders involved in the care and support of patients | I48: 0 | K48: NONE
A49: K45 | B49: The wider dental and healthcare system you work in | I49: 0 | K49: NONE
A50: K46 | B50: A range of reflective models and how to use them in your own practice and in maintaining your own professional development portfolio | I50: 0 | K50: NONE
A51: K47 | B51: The importance of quality and ways to encourage continual improvement | I51: 0 | K51: NONE
B52: Skills
A53: S1 | B53: Adhere to legal and ethical responsibilities in line with General Dental Council requirements, taking responsibility for the integrity of own actions and completed work recognising the limits of your competence and experience | I53: =IF(D53:D86 = "FULLY MET",1,IF(D53:D86 = "PARTIALLY MET",0.5,IF(D53:D86 = "NOT MET",0,))) -> 0 | K53: NONE
A54: S2 | B54: Identify normal and abnormal facial growth, physical, mental and dental development | I54: 0 | K54: PARTIAL
A55: S3 | B55: Take a patient medical and social history, checking the patient’s level of experience and expectations | I55: 0 | K55: NONE
A56: S4 | B56: Carry out screening for the orthodontic need for treatment either under the direction of an orthodontist or direct to patients | I56: 0 | K56: PARTIAL
A57: S5 | B57: Recognise the early stages of chronic problems with the soft tissues of the mouth | I57: 0 | K57: PARTIAL
A58: S6 | B58: Recognise urgent care problems related to orthodontic treatment and take appropriate action in line with their scope of practice | I58: 0 | K58: PARTIAL
A59: S7 | B59: Implement and perform effective decontamination and infection control procedures | I59: 0 | K59: NONE
A60: S8 | B60: Communicate appropriately, effectively and sensitively | I60: 0 | K60: NONE
A61: S9 | B61: Maintain patient confidentiality at all times | I61: 0 | K61: PARTIAL
A62: S10 | B62: Assess and manage patient anxiety, discomfort or challenging behaviour through effective communication, reassurance and relevant behavioural techniques | I62: 0 | K62: PARTIAL
A63: S11 | B63: Create, update and store contemporaneous patient records | I63: 0 | K63: NONE
A64: S12 | B64: Make effective decisions regarding the care of patients in line with the orthodontist’s treatment plan and in partnership with the patient and their parent/guardian | I64: 0 | K64: PARTIAL
A65: S13 | B65: Put patients’ interests first and act to protect them | I65: 0 | K65: NONE
A66: S14 | B66: Respect patients’ dignity and choices obtaining and documenting valid consent for all treatments and personal care delivery | I66: 0 | K66: NONE
A67: S15 | B67: Take impressions or scans of patient’s teeth as prescribed by the referring practitioner | I67: 0 | K67: NONE
A68: S16 | B68: Use impressions or scans of the teeth to produce study models | I68: 0 | K68: NONE
A69: S17 | B69: Select and use the correct orthodontic equipment, instruments and materials to ensure appropriate and safe orthodontic care of the patient | I69: 0 | K69: NONE
A70: S18 | B70: Clean and prepare tooth surfaces ready for orthodontic treatment | I70: 0 | K70: NONE
A71: S19 | B71: Undertake a basic orthodontic assessment of a patient’s mouth | I71: 0 | K71: NONE
A72: S20 | B72: Fit the brackets and wires which make up braces in accordance with the prescription | I72: 0 | K72: PARTIAL
A73: S21 | B73: Fit, adjust, remove or repair a range of orthodontic appliances that the patient may wear as prescribed by the orthodontist. In the absence of a prescription, be able to make safe removable and fixed appliance components | I73: 0 | K73: PARTIAL
A74: S22 | B74: Make the appliance safe and ensure continuing care is provided as soon as possible | I74: 0 | K74: PARTIAL
A75: S23 | B75: Insert, ligate, remove, trim or repair archwires from appliances under prescription | I75: 0 | K75: PARTIAL
A76: S24 | B76: Remove the brackets and wires which make up appliances and the cement from the tooth surface that has held the bracket to the tooth safely and as prescribed, without causing damage to the tooth surface | I76: 0 | K76: PARTIAL
A77: S25 | B77: Contribute to relevant tests and diagnostic procedures | I77: 0 | K77: NONE
A78: S26 | B78: Apply evidence-based oral health advice including toothbrushing, interdental cleaning, care of braces and removable orthodontic appliances, diet and hydration advice | I78: 0 | K78: NONE
A79: S27 | B79: Encourage and support self-care and motivation providing appropriate advice | I79: 0 | K79: NONE
A80: S28 | B80: Recognise and manage patients with acute oral conditions and know the referral process | I80: 0 | K80: PARTIAL
A81: S29 | B81: Identify where patients’ needs may differ from the treatment plan or prescription and direct patients for advice where appropriate | I81: 0 | K81: PARTIAL
A82: S30 | B82: Work with colleagues in a way that is in the patients’ best interests | I82: 0 | K82: PARTIAL
A83: S31 | B83: Recognise and manage medical emergencies | I83: 0 | K83: PARTIAL
A84: S32 | B84: Take part in appraisal and ongoing review | I84: 0 | K84: NONE
A85: S33 | B85: Co-operate with members of the wider dental or healthcare team, taking responsibility for establishing personal networks | I85: 0 | K85: PARTIAL
A86: S34 | B86: Reflect on own practice, recognising how reflection can be used to continually improve the quality of patient care and professional development | I86: 0 | K86: NONE
B87: Behaviours
A88: B1 | B88: Act in a manner consistent with the GDC standards for the dental team which include communication, professionalism, teamwork and clinical skills | I88: =IF(D88:D89 = "FULLY MET",1,IF(D88:D89 = "PARTIALLY MET",0.5,IF(D88:D89 = "NOT MET",0,))) -> 0 | K88: PARTIAL
A89: B2 | B89: Act in a non-discriminatory manner respecting diversity and upholding the rights, dignity and autonomy of others | I89: 0 | K89: NONE
I92: Gross score | J92: =SUM(J5:J89) -> 0 | K92: Net Score | L92: =SUM(L5:L89) -> 0
I93: total KSB coverage | J93: =J92/L96 -> 0 | K93: total CoE KSB coverage | L93: =L92/L99 -> 0
K96: total KSBs | L96: 83
K97: fully mitigated | L97: 0
K98: partialy mitigated | L98: 18
K99: net KSB | L99: =L96-L97-(L98*0.5) -> 74

Sheet ST0770
B1: Sports coach (Level 4)
B2: Return to Guide
B3: Three options are available. Please choose.
B4: High Performance Coach
B5: Community Coach
B6: School Coach
A8: KSB | B8: KSB Statement | C8: Detailed page/paragraph reference | D8: KSB coverage | E8: Evidence | F8: Assessment method | G8: Supporting comments/rationale | H8: Documents Present | I8: AB Score | J8: IM Score | K8: Mitigations | L8: CoE Score | M8: Requirement | N8: IM Comment | O8: G7 QA | P8: IM G7 Response | Q8: Conclusion
B9: High Performance Coach
B10: This list contains the core KSBs for the Sports Coach occupation, plus the specific KSBs for the High Performance Coach option.
B11: Knowledge
A12: K1 | B12: Coaching philosophies and professional practice that consider key stakeholder needs, sporting contexts and codes | I12: =IF(D12:D36 = "FULLY MET",1,IF(D12:D36 = "PARTIALLY MET",0.5,IF(D12:D36 = "NOT MET",0,))) -> 0 | K12: NONE
A13: K2 | B13: Professional development planning methods and self-awareness skills training techniques | I13: 0 | K13: NONE
A14: K3 | B14: Transformational coaching methods and strategic planning techniques | I14: 0 | K14: NONE
A15: K4 | B15: Organisational vision, strategies, policies and processes required to ensure legal, ethical, effective and efficient coaching systems. Including current health and safety, safeguarding, data protection and equality laws | I15: 0 | K15: NONE
A16: K5 | B16: Approaches to organisational workforce structures that underpin best practice and showcase the value of scope within the coaching team | I16: 0 | K16: NONE
A17: K6 | B17: Coaching team development and deployment techniques aligned to all relevant and current legislation, policy, process, operating standards and scopes of practice | I17: 0 | K17: NONE
A18: K7 | B18: Coaching service delivery approaches including industry support networks and collaborative, cohesive and competent coaching teams | I18: 0 | K18: NONE
A19: K8 | B19: Curriculum design methods and coaching pedagogies relevant to the participants unique development needs, the demands of the sport or physical activity and the occupational environment | I19: 0 | K19: NONE
A20: K9 | B20: Progressive programme design and delivery techniques that prioritises accessibility, duty of care and accelerate whole child/person development and sport specific skill acquisition | I20: 0 | K20: NONE
A21: K10 | B21: Progressive programme design and delivery techniques that ensure safe practice and support at events and competition and embed learning transfer across situations | I21: 0 | K21: NONE
A22: K11 | B22: Inclusive coaching techniques that embed human rights, equality laws and conventions to ensure ethical coaching practice | I22: 0 | K22: NONE
A23: K12 | B23: Chief Medical Officer guidelines, Public Health England agendas, organisational, sport specific and holistic approaches to wellbeing considering stressors relevant to the participants context | I23: 0 | K23: NONE
A24: K13 | B24: Learning theories and skill acquisition techniques relevant to participant’s unique development needs, the demands of the sport and occupational environment | I24: 0 | K24: NONE
A25: K14 | B25: Positive learning environment attributes and behaviour management strategies relevant to the participant’s unique development needs, demands of the sport and the occupational environment | I25: 0 | K25: NONE
A26: K15 | B26: Developments in learning resources including technological advancements and wider industry support mechanisms that maximise engagement, development and performance gains | I26: 0 | K26: NONE
A27: K16 | B27: Methods to measure the impact of the coaching strategies though analysis of key indicators from participant, coach, coaching team and organisational perception and performance data | I27: 0 | K27: NONE
A28: K17 | B28: UK sport and sport specific strategies, global data, trends and contemporary issues in high performance sport, including social, economic, educational and technological influences | I28: 0 | K28: NONE
A29: K18 | B29: UK sport guidelines, high-performance sport stakeholders, organisational context, culture, codes, direction and politics that influence coaching processes | I29: 0 | K29: NONE
A30: K19 | B30: Profiling and enquiry methods designed to measure bio-psycho-social attributes and inform whole person optimisation planning | I30: 0 | K30: NONE
A31: K20 | B31: Profiling and enquiry methods designed to measure sport specific technical and tactical attributes and inform sustainable development and high-performance goals | I31: 0 | K31: NONE
A32: K21 | B32: Session planning techniques that consider high performance athlete's/player's unique needs, goals and curriculum plans | I32: 0 | K32: NONE
A33: K22 | B33: Session preparation techniques including resource organisation, event risk assessment and safe operating procedures in line with high performance sport policy | I33: 0 | K33: NONE
A34: K23 | B34: Session delivery and adaptation techniques that motivate high performance players/athletes through tailored coaching and communication methods for maximum impact | I34: 0 | K34: NONE
A35: K24 | B35: Session evaluation methods that measure sustainable development and performance gains to shape future plans as part of the continuous enquiry cycle | I35: 0 | K35: NONE
A36: K25 | B36: Methods to measure the impact of the coaching practice on the national and international positioning of the sport by comparing athlete/player results against national and international benchmarks | I36: 0 | K36: NONE
B37: Skills
A38: S1 | B38: Influence key stakeholders in the sporting context through own coaching philosophy and professional practice | I38: =IF(D38:D62 = "FULLY MET",1,IF(D38:D62 = "PARTIALLY MET",0.5,IF(D38:D62 = "NOT MET",0,))) -> 0 | K38: PARTIAL
A39: S2 | B39: Enhance coaching competencies and inter-intra-personal skills through continued professional development and self-awareness skills training | I39: 0 | K39: NONE
A40: S3 | B40: Develop transformational coaching strategies and tactics that consider sector, sport, organisation and participants unique needs | I40: 0 | K40: NONE
A41: S4 | B41: Comply with legal, ethical, effective and efficient coaching systems that align to the organisational vision, strategies, policies and processes | I41: 0 | K41: PARTIAL
A42: S5 | B42: Promote the value of the coaching team considering workforce structures and scopes including support staff, coaches, coaching assistants, and volunteers | I42: 0 | K42: PARTIAL
A43: S6 | B43: Facilitate the development of the coaching team through due diligence, inductions, development and performance monitoring | I43: 0 | K43: PARTIAL
A44: S7 | B44: Deliver effective coaching services through industry support networks and a collaborative, cohesive and competent coaching team | I44: 0 | K44: PARTIAL
A45: S8 | B45: Design high quality curriculum that considers participants’ unique profiles, promotes ownership and informs micro, meso and macro plans as relevant to the sporting context | I45: 0 | K45: NONE
A46: S9 | B46: Designs and delivers progressive programmes and selects coaching pedagogies that maximise engagement, whole child/person development and accelerates sustainable skill acquisition | I46: 0 | K46: NONE
A47: S10 | B47: Delivers safe and effective coaching support to participants in practice, at events or competitions and influences learning and skill transfer across situations | I47: 0 | K47: NONE
A48: S11 | B48: Embrace each participants uniqueness, their rights and advocates fairness, equality and diversity within the coaching environment | I48: 0 | K48: NONE
A49: S12 | B49: Promote holistic wellbeing to control/contain stressors experienced by participants in their own context and environment | I49: 0 | K49: NONE
A50: S13 | B50: Facilitate participant development by applying learning theory and skill acquisition techniques relevant to participants needs, sport specific demands and context | I50: 0 | K50: NONE
A51: S14 | B51: Facilitate participant development and skill acquisition through positive learning environments and behaviour management strategies | I51: 0 | K51: NONE
A52: S15 | B52: Facilitate participant development and skill acquisition through technological advancements and wider industry support mechanisms | I52: 0 | K52: NONE
A53: S16 | B53: Measure the impact of the coaching strategies though analysis of participant, coach, coaching team and organisational perception and performance data | I53: 0 | K53: NONE
A54: S17 | B54: Proactively responds to global trends, strategies, and contemporary issues in high performance sport to ensure best practice in coaching | I54: 0 | K54: NONE
A55: S18 | B55: Embrace the high-performance context, culture, organisational direction, and codes to deliver effective coaching processes | I55: 0 | K55: PARTIAL
A56: S19 | B56: Profile athletes or players to measure bio-psycho-social attributes and inform whole person optimisation | I56: 0 | K56: NONE
A57: S20 | B57: Profile athlete/players to measure sport specific technical and tactical attributes and inform sustainable development and high-performance goals | I57: 0 | K57: NONE
A58: S21 | B58: Plan sessions that consider high performance athlete's/player's unique needs, goals, curriculum, progressive programmes, practice, and competition schedules | I58: 0 | K58: NONE
A59: S22 | B59: Prepare for sessions by organising resources, conducting event risk assessment and ensures safe operating procedures in line with high performance sport policy | I59: 0 | K59: NONE
A60: S23 | B60: Deliver safe, inclusive sessions and makes adaptations in the moment to accelerate development and maximise performance gains through relevant coaching and communication methods | I60: 0 | K60: NONE
A61: S24 | B61: Evaluate sessions to monitor sustainability of athlete/player development and performance gains to shape future plans as part of the continuous enquiry cycle | I61: 0 | K61: NONE
A62: S25 | B62: Measure the impact of the coaching practice on the national and international positioning of the sport by comparing athlete or player results against national and international benchmarks | I62: 0 | K62: NONE
B63: Behaviours
A64: B1 | B64: Advocate: acts as an ambassador for the organisation and sector both internally and externally | I64: =IF(D64:D71 = "FULLY MET",1,IF(D64:D71 = "PARTIALLY MET",0.5,IF(D64:D71 = "NOT MET",0,))) -> 0 | K64: PARTIAL
A65: B2 | B65: Inspirational: leads by example, acts with integrity, builds trust and demonstrates respect for others | I65: 0 | K65: NONE
A66: B3 | B66: Ethical: accepts responsibility and is committed to equality, diversity, human rights and safe practice | I66: 0 | K66: NONE
A67: B4 | B67: Collaborative: demonstrates awareness of own and others’ working styles and collaborates to achieve positive outcomes | I67: 0 | K67: NONE
A68: B5 | B68: Motivational: considers participants unique needs and tailors’ solutions to meet their unique needs | I68: 0 | K68: NONE
A69: B6 | B69: Resilient: adapts when dealing with challenges by maintaining focus, self-control and is flexible to changing work environment and people demands | I69: 0 | K69: PARTIAL
A70: B7 | B70: Results orientated: influences change by soliciting and acting on feedback to deliver results | I70: 0 | K70: NONE
A71: B8 | B71: Innovative: challenges the status quo to foster new ways of thinking and working and to resolve problems. Seeks out opportunities for continuous improvement in participants, the coaching system, services, the organisation and the sector | I71: 0 | K71: PARTIAL
I74: Gross score | J74: =SUM(J12:J71) -> 0 | K74: Net Score | L74: =SUM(L12:L71) -> 0
I75: total KSB coverage | J75: =J74/L78 -> 0 | K75: total CoE KSB coverage | L75: =L74/L81 -> 0
K78: total KSBs | L78: 58
K79: fully mitigated | L79: 0
K80: partialy mitigated | L80: 9
K81: net KSB | L81: =L78-L79-(L80*0.5) -> 53.5
A95: KSB | B95: KSB Statement | C95: Reference | D95: KSB coverage | E95: Evidence | G95: Supporting comments/rationale | H95: Documents Present | I95: AB Score | J95: AM Score | K95: Mitigations | L95: CoE score | M95: Requirement | N95: AM Comment | O95: G7 QA | P95: AM G7 Response | Q95: Conclusion
B96: Community Coach
B97: This list contains the core KSBs for the Sports Coach occupation, plus the specific KSBs for the Community Coach option.
B98: Knowledge
A99: K1 | B99: Coaching philosophies and professional practice that consider key stakeholder needs, sporting contexts and codes | I99: =IF(D99:D123 = "FULLY MET",1,IF(D99:D123 = "PARTIALLY MET",0.5,IF(D99:D123 = "NOT MET",0,))) -> 0 | K99: NONE
A100: K2 | B100: Professional development planning methods and self-awareness skills training techniques | I100: 0 | K100: NONE
A101: K3 | B101: Transformational coaching methods and strategic planning techniques | I101: 0 | K101: NONE
A102: K4 | B102: Organisational vision, strategies, policies and processes required to ensure legal, ethical, effective and efficient coaching systems. Including current health and safety, safeguarding, data protection and equality laws | I102: 0 | K102: NONE
A103: K5 | B103: Approaches to organisational workforce structures that underpin best practice and showcase the value of scope within the coaching team | I103: 0 | K103: NONE
A104: K6 | B104: Coaching team development and deployment techniques aligned to all relevant and current legislation, policy, process, operating standards and scopes of practice | I104: 0 | K104: NONE
A105: K7 | B105: Coaching service delivery approaches including industry support networks and collaborative, cohesive and competent coaching teams | I105: 0 | K105: NONE
A106: K8 | B106: Curriculum design methods and coaching pedagogies relevant to the participants unique development needs, the demands of the sport or physical activity and the occupational environment | I106: 0 | K106: NONE
A107: K9 | B107: Progressive programme design and delivery techniques that prioritises accessibility, duty of care and accelerate whole child/person development and sport specific skill acquisition | I107: 0 | K107: NONE
A108: K10 | B108: Progressive programme design and delivery techniques that ensure safe practice and support at events and competition and embed learning transfer across situations | I108: 0 | K108: NONE
A109: K11 | B109: Inclusive coaching techniques that embed human rights, equality laws and conventions to ensure ethical coaching practice | I109: 0 | K109: NONE
A110: K12 | B110: Chief Medical Officer guidelines, Public Health England agendas, organisational, sport specific and holistic approaches to wellbeing considering stressors relevant to the participants context | I110: 0 | K110: NONE
A111: K13 | B111: Learning theories and skill acquisition techniques relevant to participant’s unique development needs, the demands of the sport and occupational environment | I111: 0 | K111: NONE
A112: K14 | B112: Positive learning environment attributes and behaviour management strategies relevant to the participant’s unique development needs, demands of the sport and the occupational environment | I112: 0 | K112: NONE
A113: K15 | B113: Developments in learning resources including technological advancements and wider industry support mechanisms that maximise engagement, development and performance gains | I113: 0 | K113: NONE
A114: K16 | B114: Methods to measure the impact of the coaching strategies though analysis of key indicators from participant, coach, coaching team and organisational perception and performance data | I114: 0 | K114: NONE
A115: K26 | B115: Sport England Professional Workforce Strategies, social change agendas, national trends on national physical activity participation, local data and contemporary influences | I115: 0 | K115: NONE
A116: K27 | B116: Community initiative or club context, culture, stakeholders, Sport England Coaching Plan, sport specific codes, geographic infrastructure and networks that influence coaching pedagogy and process effectiveness | I116: 0 | K116: NONE
A117: K28 | B117: Profiling and enquiry methods designed to measure whole child/person development dimensions considering cognitive, social, emotional and physiological capabilities | I117: 0 | K117: NONE
A118: K29 | B118: Profiling and enquiry methods designed to measure participant motives, behavioural norms, psychomotor skills, technical and tactical awareness in specific sport and physical activity contexts to enable process goals to be agreed | I118: 0 | K118: NONE
A119: K30 | B119: Session planning techniques that consider each participant unique motives, access and development needs, goals and seasonal plans | I119: 0 | K119: NONE
A120: K31 | B120: Session preparation techniques including resource organisation, event risk assessment and safe operating procedures in line with community organisation health and safety policy | I120: 0 | K120: NONE
A121: K32 | B121: Session delivery and adaptation techniques including tailored coaching and targeted communication methods for maximum impact on long-term engagement and enrichment | I121: 0 | K121: NONE
A122: K33 | B122: Session evaluation methods that measure engagement, enrichment and whole child/person development dimensions to shape future plans as part of the continuous enquiry cycle | I122: 0 | K122: NONE
A123: K34 | B123: Methods to measure the impact of coaching practice on social change associated with access, participation, performance, equality and wellbeing by comparing results against local and national benchmarks | I123: 0 | K123: NONE
B124: Skills
A125: S1 | B125: Influence key stakeholders in the sporting context through own coaching philosophy and professional practice | I125: =IF(D125:D149 = "FULLY MET",1,IF(D125:D149 = "PARTIALLY MET",0.5,IF(D125:D149 = "NOT MET",0,))) -> 0 | K125: PARTIAL
A126: S2 | B126: Enhance coaching competencies and inter-intra-personal skills through continued professional development and self-awareness skills training | I126: 0 | K126: NONE
A127: S3 | B127: Develop transformational coaching strategies and tactics that consider sector, sport, organisation and participants unique needs | I127: 0 | K127: NONE
A128: S4 | B128: Comply with legal, ethical, effective and efficient coaching systems that align to the organisational vision, strategies, policies and processes | I128: 0 | K128: PARTIAL
A129: S5 | B129: Promote the value of the coaching team considering workforce structures and scopes including support staff, coaches, coaching assistants, and volunteers | I129: 0 | K129: PARTIAL
A130: S6 | B130: Facilitate the development of the coaching team through due diligence, inductions, development and performance monitoring | I130: 0 | K130: PARTIAL
A131: S7 | B131: Deliver effective coaching services through industry support networks and a collaborative, cohesive and competent coaching team | I131: 0 | K131: PARTIAL
A132: S8 | B132: Design high quality curriculum that considers participants’ unique profiles, promotes ownership and informs micro, meso and macro plans as relevant to the sporting context | I132: 0 | K132: NONE
A133: S9 | B133: Designs and delivers progressive programmes and selects coaching pedagogies that maximise engagement, whole child/person development and accelerates sustainable skill acquisition | I133: 0 | K133: NONE
A134: S10 | B134: Delivers safe and effective coaching support to participants in practice, at events or competitions and influences learning and skill transfer across situations | I134: 0 | K134: NONE
A135: S11 | B135: Embrace each participants uniqueness, their rights and advocates fairness, equality and diversity within the coaching environment | I135: 0 | K135: NONE
A136: S12 | B136: Promote holistic wellbeing to control/contain stressors experienced by participants in their own context and environment | I136: 0 | K136: NONE
A137: S13 | B137: Facilitate participant development by applying learning theory and skill acquisition techniques relevant to participants needs, sport specific demands and context | I137: 0 | K137: NONE
A138: S14 | B138: Facilitate participant development and skill acquisition through positive learning environments and behaviour management strategies | I138: 0 | K138: NONE
A139: S15 | B139: Facilitate participant development and skill acquisition through technological advancements and wider industry support mechanisms | I139: 0 | K139: NONE
A140: S16 | B140: Measure the impact of the coaching strategies though analysis of participant, coach, coaching team and organisational perception and performance data | I140: 0 | K140: NONE
A141: S26 | B141: Proactively responds to sector strategies, social change agendas, national and local trends in physical activity participation and contemporary influences | I141: 0 | K141: NONE
A142: S27 | B142: Embrace the community category, context, culture, codes, stakeholders and public sector duty to deliver effective coaching pedagogies and processes | I142: 0 | K142: PARTIAL
A143: S28 | B143: Profile participants to measure whole child/person development dimensions considering cognitive, social, emotional and physiological capabilities | I143: 0 | K143: NONE
A144: S29 | B144: Profile participants motives, behavioural norms, psychomotor skills, technical and tactical awareness in community sport and physical activity contexts to enable goals to be agreed | I144: 0 | K144: NONE
A145: S30 | B145: Plan targeted and accessible sessions that consider each participant's unique motives, development needs, goals and seasonal plans | I145: 0 | K145: NONE
A146: S31 | B146: Prepare for sessions by organising resources, conducting event risk assessment and ensures safe operating procedures in line with community organisation health and safety policy | I146: 0 | K146: NONE
A147: S32 | B147: Deliver safe and inclusive and effective sessions and makes adaptations in the moment to engage and enrich participants though tailored coaching and targeted communication methods for maximum impact | I147: 0 | K147: NONE
A148: S33 | B148: Evaluate sessions to monitor engagement, enrichment and whole child/person development dimensions to shape future plans as part of the continuous enquiry cycle | I148: 0 | K148: NONE
A149: S34 | B149: Measure the impact of coaching practice on social change associated with access, participation, performance, equality and wellbeing by comparing results against local and national benchmarks | I149: 0 | K149: NONE
B150: Behaviours
A151: B1 | B151: Advocate: acts as an ambassador for the organisation and sector both internally and externally | I151: =IF(D151:D158 = "FULLY MET",1,IF(D151:D158 = "PARTIALLY MET",0.5,IF(D151:D158 = "NOT MET",0,))) -> 0 | K151: PARTIAL
A152: B2 | B152: Inspirational: leads by example, acts with integrity, builds trust and demonstrates respect for others | I152: 0 | K152: NONE
A153: B3 | B153: Ethical: accepts responsibility and is committed to equality, diversity, human rights and safe practice | I153: 0 | K153: NONE
A154: B4 | B154: Collaborative: demonstrates awareness of own and others’ working styles and collaborates to achieve positive outcomes | I154: 0 | K154: NONE
A155: B5 | B155: Motivational: considers participants unique needs and tailors’ solutions to meet their unique needs | I155: 0 | K155: NONE
A156: B6 | B156: Resilient: adapts when dealing with challenges by maintaining focus, self-control and is flexible to changing work environment and people demands | I156: 0 | K156: PARTIAL
A157: B7 | B157: Results orientated: influences change by soliciting and acting on feedback to deliver results | I157: 0 | K157: NONE
A158: B8 | B158: Innovative: challenges the status quo to foster new ways of thinking and working and to resolve problems. Seeks out opportunities for continuous improvement in participants, the coaching system, services, the organisation and the sector | I158: 0 | K158: PARTIAL
I161: Gross score | J161: =SUM(J99:J158) -> 0 | K161: Net Score | L161: =SUM(L99:L158) -> 0
I162: total KSB coverage | J162: =J161/L165 -> 0 | K162: total CoE KSB coverage | L162: =L161/L168 -> 0
K165: total KSBs | L165: 58
K166: fully mitigated | L166: 0
K167: partialy mitigated | L167: 9
K168: net KSB | L168: =L165-L166-(L167*0.5) -> 53.5
A182: KSB | B182: KSB Statement | C182: Reference | D182: KSB coverage | E182: Evidence | G182: Supporting comments/rationale | H182: Documents Present | I182: AB Score | J182: IM Score | K182: Mitigations | L182: CoE Score | M182: Requirement | N182: IM Comment | O182: G7 QA | P182: IM G7 Response | Q182: Conclusion
B183: School Coach
B184: This list contains the core KSBs for the Sports Coach occupation, plus the specific KSBs for the School Coach option.
B185: Knowledge
A186: K1 | B186: Coaching philosophies and professional practice that consider key stakeholder needs, sporting contexts and codes | I186: =IF(D186:D210 = "FULLY MET",1,IF(D186:D210 = "PARTIALLY MET",0.5,IF(D186:D210 = "NOT MET",0,))) -> 0 | K186: NONE
A187: K2 | B187: Professional development planning methods and self-awareness skills training techniques | I187: 0 | K187: NONE
A188: K3 | B188: Transformational coaching methods and strategic planning techniques | I188: 0 | K188: NONE
A189: K4 | B189: Organisational vision, strategies, policies and processes required to ensure legal, ethical, effective and efficient coaching systems. Including current health and safety, safeguarding, data protection and equality laws | I189: 0 | K189: NONE
A190: K5 | B190: Approaches to organisational workforce structures that underpin best practice and showcase the value of scope within the coaching team | I190: 0 | K190: NONE
A191: K6 | B191: Coaching team development and deployment techniques aligned to all relevant and current legislation, policy, process, operating standards and scopes of practice | I191: 0 | K191: NONE
A192: K7 | B192: Coaching service delivery approaches including industry support networks and collaborative, cohesive and competent coaching teams | I192: 0 | K192: NONE
A193: K8 | B193: Curriculum design methods and coaching pedagogies relevant to the participants unique development needs, the demands of the sport or physical activity and the occupational environment | I193: 0 | K193: NONE
A194: K9 | B194: Progressive programme design and delivery techniques that prioritises accessibility, duty of care and accelerate whole child/person development and sport specific skill acquisition | I194: 0 | K194: NONE
A195: K10 | B195: Progressive programme design and delivery techniques that ensure safe practice and support at events and competition and embed learning transfer across situations | I195: 0 | K195: NONE
A196: K11 | B196: Inclusive coaching techniques that embed human rights, equality laws and conventions to ensure ethical coaching practice | I196: 0 | K196: NONE
A197: K12 | B197: Chief Medical Officer guidelines, Public Health England agendas, organisational, sport specific and holistic approaches to wellbeing considering stressors relevant to the participants context | I197: 0 | K197: NONE
A198: K13 | B198: Learning theories and skill acquisition techniques relevant to participant’s unique development needs, the demands of the sport and occupational environment | I198: 0 | K198: NONE
A199: K14 | B199: Positive learning environment attributes and behaviour management strategies relevant to the participant’s unique development needs, demands of the sport and the occupational environment | I199: 0 | K199: NONE
A200: K15 | B200: Developments in learning resources including technological advancements and wider industry support mechanisms that maximise engagement, development and performance gains | I200: 0 | K200: NONE
A201: K16 | B201: Methods to measure the impact of the coaching strategies though analysis of key indicators from participant, coach, coaching team and organisational perception and performance data | I201: 0 | K201: NONE
A202: K35 | B202: National trends in education, the Department for Education strategies, Statutory Guidelines, DfE National Curriculum the Ofsted Education Inspection Framework and the educational paradigm shift | I202: 0 | K202: NONE
A203: K36 | B203: School stakeholders, context, category, strategies, culture and codes that influence coaching pedagogy and process effectiveness | I203: 0 | K203: NONE
A204: K37 | B204: Profiling and enquiry methods designed to measure whole child development dimensions considering cognitive, social, emotional and physiological stages of development | I204: 0 | K204: NONE
A205: K38 | B205: Profiling and enquiry methods designed to measure psychomotor, technical and tactical skills in physical activity contexts drawn from the Department for Education National Curriculum and enable physical education targets to be agreed | I205: 0 | K205: NONE
A206: K39 | B206: Session planning techniques that consider each child's unique profile, development needs, educational targets, and curriculum plans | I206: 0 | K206: NONE
A207: K40 | B207: Session preparation techniques including resource organisation, event risk assessment and safe operating procedures in line with school health and safety policy | I207: 0 | K207: NONE
A208: K41 | B208: Session delivery and adaptation techniques that inspire children though tailored coaching and communication methods for maximum impact | I208: 0 | K208: NONE
A209: K42 | B209: Session evaluation methods that prioritise children’s mastery of physical education standards, psychomotor skills and whole child development and shape future plans as part of the continuous enquiry cycle | I209: 0 | K209: NONE
A210: K43 | B210: Methods to measure and evaluate the impact of coaching practice on school standards by comparing children's results against local and national benchmarks | I210: 0 | K210: NONE
B211: Skills
A212: S1 | B212: Influence key stakeholders in the sporting context through own coaching philosophy and professional practice | I212: =IF(D212:D236 = "FULLY MET",1,IF(D212:D236 = "PARTIALLY MET",0.5,IF(D212:D236 = "NOT MET",0,))) -> 0 | K212: PARTIAL
A213: S2 | B213: Enhance coaching competencies and inter-intra-personal skills through continued professional development and self-awareness skills training | I213: 0 | K213: NONE
A214: S3 | B214: Develop transformational coaching strategies and tactics that consider sector, sport, organisation and participants unique needs | I214: 0 | K214: NONE
A215: S4 | B215: Comply with legal, ethical, effective and efficient coaching systems that align to the organisational vision, strategies, policies and processes | I215: 0 | K215: PARTIAL
A216: S5 | B216: Promote the value of the coaching team considering workforce structures and scopes including support staff, coaches, coaching assistants, and volunteers | I216: 0 | K216: PARTIAL
A217: S6 | B217: Facilitate the development of the coaching team through due diligence, inductions, development and performance monitoring | I217: 0 | K217: PARTIAL
A218: S7 | B218: Deliver effective coaching services through industry support networks and a collaborative, cohesive and competent coaching team | I218: 0 | K218: PARTIAL
A219: S8 | B219: Design high quality curriculum that considers participants’ unique profiles, promotes ownership and informs micro, meso and macro plans as relevant to the sporting context | I219: 0 | K219: NONE
A220: S9 | B220: Designs and delivers progressive programmes and selects coaching pedagogies that maximise engagement, whole child/person development and accelerates sustainable skill acquisition | I220: 0 | K220: NONE
A221: S10 | B221: Delivers safe and effective coaching support to participants in practice, at events or competitions and influences learning and skill transfer across situations | I221: 0 | K221: NONE
A222: S11 | B222: Embrace each participants uniqueness, their rights and advocates fairness, equality and diversity within the coaching environment | I222: 0 | K222: NONE
A223: S12 | B223: Promote holistic wellbeing to control/contain stressors experienced by participants in their own context and environment | I223: 0 | K223: NONE
A224: S13 | B224: Facilitate participant development by applying learning theory and skill acquisition techniques relevant to participants needs, sport specific demands and context | I224: 0 | K224: NONE
A225: S14 | B225: Facilitate participant development and skill acquisition through positive learning environments and behaviour management strategies | I225: 0 | K225: NONE
A226: S15 | B226: Facilitate participant development and skill acquisition through technological advancements and wider industry support mechanisms | I226: 0 | K226: NONE
A227: S16 | B227: Measure the impact of the coaching strategies though analysis of participant, coach, coaching team and organisational perception and performance data | I227: 0 | K227: NONE
A228: S35 | B228: Proactively responds to national trends in education standards, paradigm shifts, strategies and contemporary influences in school and physical education | I228: 0 | K228: NONE
A229: S36 | B229: Embrace the school category, context, culture, codes, stakeholders, and statutory guidelines to deliver effective coaching pedagogies and processes | I229: 0 | K229: PARTIAL
A230: S37 | B230: Profile whole child development dimensions considering cognitive, social, emotional and physiological stages of development | I230: 0 | K230: PARTIAL
A231: S38 | B231: Profile children's psychomotor, technical and tactical skills in physical activity contexts drawn from the DfE National Curriculum to enable physical education targets to be agreed | I231: 0 | K231: PARTIAL
A232: S39 | B232: Plan safe, inclusive and effective sessions that consider each child's unique development needs, educational targets and curriculum plans | I232: 0 | K232: PARTIAL
A233: S40 | B233: Prepare for sessions by organising resources, conducting event risk assessment and ensures safe operating procedures in line with school health and safety policy | I233: 0 | K233: PARTIAL
A234: S41 | B234: Delivers safe, inclusive and effective sessions and makes necessary adaptations to develop children’s psychomotor skill mastery though tailored coaching and communication methods for maximum impact | I234: 0 | K234: PARTIAL
A235: S42 | B235: Evaluate sessions to monitor children's mastery of physical education standards, psychomotor skills and whole child development to shape plans as part of the continuous enquiry cycle | I235: 0 | K235: PARTIAL
... 16 more rows

Sheet ST0786
B1: Associate continuing healthcare practitioner (Level 5)
B2: Return to Guide
A3: KSB | B3: KSB Statement | C3: Detailed page/paragraph reference | D3: KSB coverage | E3: Evidence | F3: Assessment method | G3: Supporting comments/rationale | H3: Documents Present | I3: AB Score | J3: IM Score | K3: Mitigations | L3: CoE Score | M3: Requirement | N3: IM Comment | O3: G7 QA | P3: IM G7 Response | Q3: Conclusion
B4: Knowledge
A5: K1 | B5: Understands the structures and functions of the human body | I5: =IF(D5:D37 = "FULLY MET",1,IF(D5:D37 = "PARTIALLY MET",0.5,IF(D5:D37 = "NOT MET",0,))) -> 0 | K5: NONE
A6: K2 | B6: Understand how to support people going through the Continuing Healthcare process | I6: 0 | K6: NONE
A7: K3 | B7: Understand commonly encountered mental, physical, behavioural and cognitive health conditions, medication usage and treatments and and how ill health impacts on the individual and their family | I7: 0 | K7: NONE
A8: K4 | B8: The principles of infection control | I8: 0 | K8: NONE
A9: K5 | B9: Understand the principles of Funded-nursing care and Joint packages of care and how the Associate Continuing Healthcare Practitioner can support the planning and assessment of these | I9: 0 | K9: NONE
A10: K6 | B10: Knows how and when to plan and facilitate referal, discharge or transition of care between professionals, settings or services and what makes up an appropriate care package | I10: 0 | K10: NONE
A11: K7 | B11: Understands the principles of a primary health need and the difference between health and social care needs | I11: 0 | K11: NONE
A12: K8 | B12: Understand the importance and how to use a range of communication methods and media available to assist with communication | I12: 0 | K12: NONE
A13: K9 | B13: The range of health and social care contract types used, including Personal Health Budgets and services commissioned to treat and support individuals with ill health, disabilities and social care needs | I13: 0 | K13: NONE
A14: K10 | B14: Knows the principles of healthcare business and financial planning, commissioning and procurement and how this impacts on continuing healthcare services and the numeracy to undertake basic budgetary analysis. | I14: 0 | K14: NONE
A15: K11 | B15: Understand the impact of co-morbidities and the demands of meeting people’s complex health and social care needs when commissioning services | I15: 0 | K15: NONE
A16: K12 | B16: How to undertake risk assessment, using a range of commonly used tools, and know when to seek advice to avoid compromising quality and safety of others | I16: 0 | K16: NONE
A17: K13 | B17: Understands the factors which affect vulnerable people and how this can impact on the health and social care needs and the role of safeguarding policy in oversight of their care | I17: 0 | K17: NONE
A18: K14 | B18: Understand the differences between risk aversion and risk management and how to avoid compromising quality of care commissioned but work towards the choices of the individual where safe to do so | I18: 0 | K18: NONE
A19: K15 | B19: Understand the role and function of the Care Quality Commission for care home, supportive living and home care providers | I19: 0 | K19: NONE
A20: K16 | B20: Understand the importance of Contractual Management in maintaining the quality, sustainability and effectiveness of services and what contractual levers can be used if concerns are identified | I20: 0 | K20: NONE
A21: K17 | B21: Knows how discriminatory behaviour is exhibited and the impact this can have on individuals and the commissioning function | I21: 0 | K21: NONE
A22: K18 | B22: Techniques to manage differences of opinion, conflict and difficult conversations between professionals | I22: 0 | K22: NONE
A23: K19 | B23: Understand the principles of accountability and how this applies to the role of Associate Continuing Healthcare Practitioner | I23: 0 | K23: NONE
A24: K20 | B24: Understands the principles of courage, transparency and the professional duty of candour | I24: 0 | K24: NONE
A25: K21 | B25: Knows how care navigation/social prescribing can be used to address the individual’s needs and support them to move from dependence to more independence | I25: 0 | K25: NONE
A26: K22 | B26: Understand roles, responsibilities and models of care of all members of the health and social care multidisciplinary team in providing and commissioning care and how the MDT contribute to a lawful assessment for eligibility of Continuing Healthcare | I26: 0 | K26: NONE
A27: K23 | B27: Understand the principles of effective leadership and supervisory opportunities and roles for a associate continuing healthcare practitioner | I27: 0 | K27: NONE
A28: K24 | B28: Understand the demands of multidisciplinary practice and strategies to develop resilience in self and know how to seek support to help deal with uncertain situations | I28: 0 | K28: NONE
A29: K25 | B29: Understand relevant legal, regulatory and governance requirements, policies, and frameworks, including any mandatory reporting duties, to all areas of practice | I29: 0 | K29: NONE
A30: K26 | B30: Knows the financial implications that eligibility has and how this can influence demand on the service, behaviours and decisions made | I30: 0 | K30: NONE
A31: K27 | B31: Knows how to critically appraise and reflect upon knowledge, research and practice and understand how this can be used in practice improve the quality of care and service delivered and commissioned | I31: 0 | K31: NONE
A32: K28 | B32: The importance of accurate and timely data collection processes and how this has an impact on local and national assurance mechanisms | I32: 0 | K32: NONE
A33: K29 | B33: Know how to review individual’s health and social care needs related to breathing, nutrition, bladder and bowel health, skin integrity, mobility, communication, psychological and emotional, cognition, behaviour, symptom control and consciousness | I33: 0 | K33: NONE
A34: K30 | B34: Understand the challenges of providing safe care for people with complex co-morbidities and complex care needs | I34: 0 | K34: NONE
A35: K31 | B35: Understands methods for dealing with potential conflict situations | I35: 0 | K35: NONE
A36: K32 | B36: Recognises the impact of claims companies and solicitors on the appeals process | I36: 0 | K36: NONE
A37: K33 | B37: Understands the roles, responsibilities and functions of the Health and Social care professionals that form a MDT | I37: 0 | K37: NONE
B38: Skills
A39: S1 | B39: To make appropriate referrals of an individual into the continuing healthcare service via a standard or fast-track referral pathway, using the mandated screening tools as per national policy, rejecting and redirecting any inappropriate referrals | I39: =IF(D39:D66 = "FULLY MET",1,IF(D39:D66 = "PARTIALLY MET",0.5,IF(D39:D66 = "NOT MET",0,))) -> 0 | K39: PARTIAL
A40: S2 | B40: To formulate, monitor and reassess person-centred, evidence based health and social care plan, delegated by registered practitioner, ensuring commissioned services maintain optimal independence and health and social care outcomes where possible and continues to meet the needs of the individual | I40: 0 | K40: PARTIAL
A41: S3 | B41: Take appropriate action where change in health or social care need requires screening, referral or further MDT assessment to establish ongoing Continuing Healthcare eligibility | I41: 0 | K41: NONE
A42: S4 | B42: Co-ordinate routine planning and management of referral, discharge or transition of care between professionals, settings or services | I42: 0 | K42: PARTIAL
A43: S5 | B43: Protect health through applying the principles of infection prevention and control | I43: 0 | K43: NONE
A44: S6 | B44: Communicate and provide information in an accessible way that is sensitive and appropriate, using a range of skills and strategies with colleagues and people at all stages of life and with a range of mental, physical, cognitive and behavioural challenges recognising common barriers to communication | I44: 0 | K44: PARTIAL
A45: S7 | B45: Utilise report writing skills to formulate clear and evidence based multidisciplinary team recommendations | I45: 0 | K45: NONE
A46: S8 | B46: Develop, manage and maintain appropriate relationships and rapport with people, their families, carers, colleagues and providers | I46: 0 | K46: PARTIAL
A47: S9 | B47: Facilitate discussions with individuals and their families to set an indicative Personal Health Budget | I47: 0 | K47: NONE
A48: S10 | B48: Identify responsible commissioner for individuals referred into the continuing healthcare service | I48: 0 | K48: NONE
A49: S11 | B49: Commission a package of care for an individual eligible for continuing healthcare | I49: 0 | K49: PARTIAL
A50: S12 | B50: Manage and prioritise competing demands, prioritising workload based on level of risk | I50: 0 | K50: NONE
A51: S13 | B51: Process referrals in a timely manner | I51: 0 | K51: NONE
A52: S14 | B52: In a range of settings, recognise where people could be at risk, including from neglect, and take appropriate action to report potential risk for assessment | I52: 0 | K52: PARTIAL
A53: S15 | B53: Commission safe, effective and person-centred health and social care packages for people who have co-morbidities and complex care needs | I53: 0 | K53: PARTIAL
A54: S16 | B54: Participate in data collection to support service delivery evaluation, audit or assurance activity to identify appropriate quality improvement activities or any gaps within the provider market | I54: 0 | K54: PARTIAL
A55: S17 | B55: Works within limits of own competence, experience and training, delegating tasks and escalating issues and duties appropriately | I55: 0 | K55: PARTIAL
A56: S18 | B56: Act as an advocate for the individual | I56: 0 | K56: PARTIAL
A57: S19 | B57: Use facilitation and co-ordination skills to make best use of the contributions of others across the multidisciplinary team for the purposes of a lawful assessment or review | I57: 0 | K57: NONE
A58: S20 | B58: Apply the principles of effective leadership | I58: 0 | K58: NONE
A59: S21 | B59: Act as a role model to colleagues, supervising and providing feedback about behaviour and actions of others, motivating them to reflect on and develop their practice | I59: 0 | K59: NONE
A60: S22 | B60: Ensure the wellbeing and resilience needs of the team are met and recognise signs of vulnerability in themselves or their colleagues | I60: 0 | K60: NONE
A61: S23 | B61: Act in accordance with legislation, national guidance and local policy at all times | I61: 0 | K61: PARTIAL
A62: S24 | B62: Can proactively engage with the individual or representative to support an amicable and lawful resolution of conflict or disagreement | I62: 0 | K62: NONE
A63: S25 | B63: Identify and collate documents and evidence demonstrating current health and social care need from all professionals involved in the care of the individual, for lawful assessment or review of health and social care need to be undertaken | I63: 0 | K63: PARTIAL
A64: S26 | B64: Use a range of digital technologies to access, input, share and apply information and data within teams and between agencies | I64: 0 | K64: NONE
A65: S27 | B65: Complete, store and retain accurate and contemporaneous records and data | I65: 0 | K65: NONE
A66: S28 | B66: The ability to read, interpret and understand clinical records and notes | I66: 0 | K66: NONE
B67: Behaviours
A68: B1 | B68: Act in a non-discriminatory fashion, treating people with dignity and respecting individual's diversity, beliefs, culture, needs, values, privacy and preferences | I68: =IF(D68:D76 = "FULLY MET",1,IF(D68:D76 = "PARTIALLY MET",0.5,IF(D68:D76 = "NOT MET",0,))) -> 0 | K68: NONE
A69: B2 | B69: Be caring, sensitive and compassionate, nurturing the potential in others | I69: 0 | K69: NONE
A70: B3 | B70: Have the courage to speak up and challenge areas of concern or any discriminatory behaviour, providing honest, accurate and constructive feedback | I70: 0 | K70: PARTIAL
A71: B4 | B71: Be competent, reliable and committed, using reflection to constantly improve and work to evidence based best practice always working within limits of own competence, experience and training | I71: 0 | K71: NONE
A72: B5 | B72: Be adaptable, reliable and consistent, show discretion, resilience and self-awareness and demonstrate leadership | I72: 0 | K72: NONE
A73: B6 | B73: Communicate in ways that are sensitive and appropriate, considering emotional, psychological, cognitive, language, social and other circumstances | I73: 0 | K73: NONE
A74: B7 | B74: Constantly works to build the development of a positive associate CHC practitioner-patient relationship as a core element of the role | I74: 0 | K74: PARTIAL
A75: B8 | B75: Act as an ambassador and promote trust, upholding the reputation and promoting public confidence in the continuing healthcare service | I75: 0 | K75: PARTIAL
A76: B9 | B76: Demonstrates accountability in practice, engaging proactively in continuing development and training | I76: 0 | K76: PARTIAL
I79: Gross score | J79: =SUM(J5:J76) -> 0 | K79: Net Score | L79: =SUM(L5:L76) -> 0
I80: total KSB coverage | J80: =J79/L83 -> 0 | K80: total CoE KSB coverage | L80: =L79/L86 -> 0
K83: total KSBs | L83: 70
K84: fully mitigated | L84: 0
K85: partialy mitigated | L85: 17
K86: net KSB | L86: =L83-L84-(L85*0.5) -> 61.5

Sheet ST0827
B1: Nursing associate (NMC 2018) (Level 5)
B2: Return to Guide
A3: KSB | B3: KSB Statement | C3: Detailed page/paragraph reference | D3: KSB coverage | E3: Evidence | F3: Assessment method | G3: Supporting comments/rationale | H3: Documents Present | I3: AB Score | J3: IM Score | K3: Mitigations | L3: CoE Score | M3: Requirement | N3: IM Comment | O3: G7 QA | P3: IM G7 Response | Q3: Conclusion
B4: Knowledge
A5: K1 | B5: Understand the Code: Professional standards of practice and behaviour for nurses, midwives and nursing associates (NMC, 2018), and how to fulfil all registration requirements | I5: =IF(D5:D47 = "FULLY MET",1,IF(D5:D47= "PARTIALLY MET",0.5,IF(D5:D47 = "NOT MET",0,))) -> 0 | K5: NONE
A6: K2 | B6: Understand the demands of professional practice and demonstrate how to recognise signs of vulnerability in themselves or their colleagues and the action required to minimise risks to health | I6: 0 | K6: NONE
A7: K3 | B7: Understand the professional responsibility to adopt a healthy lifestyle to maintain the level of personal fitness and well-being required to meet people’s needs for mental and physical care | I7: 0 | K7: NONE
A8: K4 | B8: Understand the principles of research and how research findings are used to inform evidence-based practice | I8: 0 | K8: NONE
A9: K5 | B9: Understand the meaning of resilience and emotional intelligence, and their influence on an individual’s ability to provide care | I9: 0 | K9: NONE
A10: K6 | B10: Understand and apply relevant legal, regulatory and governance requirements, policies, and ethical frameworks, including any mandatory reporting duties, to all areas of practice | I10: 0 | K10: NONE
A11: K7 | B11: Understand the importance of courage and transparency and apply the Duty of Candour | I11: 0 | K11: NONE
A12: K8 | B12: Understand how discriminatory behaviour is exhibited | I12: 0 | K12: NONE
A13: K9 | B13: Understand the aims and principles of health promotion, protection and improvement and the prevention of ill health when engaging with people | I13: 0 | K13: NONE
A14: K10 | B14: Understand the principles of epidemiology, demography, and genomics and how these may influence health and well-being outcomes | I14: 0 | K14: NONE
A15: K11 | B15: Understand the factors that may lead to inequalities in health outcomes | I15: 0 | K15: NONE
A16: K12 | B16: Understand the importance of early years and childhood experiences and the possible impact on life choices, mental, physical and behavioural health and well-being | I16: 0 | K16: NONE
A17: K13 | B17: Understand the contribution of social influences, health literacy, individual circumstances, behaviours and lifestyle choices to mental, physical and behavioural health outcomes | I17: 0 | K17: NONE
A18: K14 | B18: Understand the importance of health screening | I18: 0 | K18: NONE
A19: K15 | B19: Understand human development from conception to death, to enable delivery of person-centred safe and effective care | I19: 0 | K19: NONE
A20: K16 | B20: Understand body systems and homeostasis, human anatomy and physiology, biology, genomics, pharmacology, social and behavioural sciences as applied to delivery of care | I20: 0 | K20: NONE
A21: K17 | B21: Understand commonly encountered mental, physical, behavioural and cognitive health conditions as applied to delivery of care | I21: 0 | K21: NONE
A22: K18 | B22: Understand and apply the principles and processes for making reasonable adjustments | I22: 0 | K22: NONE
A23: K19 | B23: Know how and when to escalate to the appropriate professional for expert help and advice | I23: 0 | K23: NONE
A24: K20 | B24: Know how people’s needs for safety, dignity, privacy, comfort and sleep can be met | I24: 0 | K24: NONE
A25: K21 | B25: Understand co-morbidities and the demands of meeting people’s holistic needs when prioritising care | I25: 0 | K25: NONE
A26: K22 | B26: Know how to meet people’s needs related to nutrition, hydration and bladder and bowel health | I26: 0 | K26: NONE
A27: K23 | B27: Know how to meet people’s needs related to mobility, hygiene, oral care, wound care and skin integrity | I27: 0 | K27: NONE
A28: K24 | B28: Know how to support people with commonly encountered symptoms including anxiety, confusion, discomfort and pain | I28: 0 | K28: NONE
A29: K25 | B29: Know how to deliver sensitive and compassionate end of life care to support people to plan for their end of life | I29: 0 | K29: NONE
A30: K26 | B30: Understand where and how to seek guidance and support from others to ensure that the best interests of those receiving care are upheld | I30: 0 | K30: NONE
A31: K27 | B31: Understand the principles of safe and effective administration and optimisation of medicines in accordance with local and national policies | I31: 0 | K31: NONE
A32: K28 | B32: Understand the effects of medicines, allergies, drug sensitivity, side effects, contraindications and adverse reactions | I32: 0 | K32: NONE
A33: K29 | B33: Understand the different ways by which medicines can be prescribed | I33: 0 | K33: NONE
A34: K30 | B34: Understand the principles of health and safety legislation and regulations and maintain safe work and care environments | I34: 0 | K34: NONE
A35: K31 | B35: Understand how inadequate staffing levels impact on the ability to provide safe care and escalate concerns appropriately | I35: 0 | K35: NONE
A36: K32 | B36: Understand what constitutes a near miss, a serious adverse event, a critical incident and a major incident | I36: 0 | K36: NONE
A37: K33 | B37: Understand when to seek appropriate advice to manage a risk and avoid compromising quality of care and health outcomes | I37: 0 | K37: NONE
A38: K34 | B38: Know and understand strategies to develop resilience in self and know how to seek support to help deal with uncertain situations | I38: 0 | K38: NONE
A39: K35 | B39: Understand own role and the roles of all other staff at different levels of experience and seniority in the event of a major incident | I39: 0 | K39: NONE
A40: K36 | B40: Understand the roles of the different providers of health and care | I40: 0 | K40: NONE
A41: K37 | B41: Understand the challenges of providing safe nursing care for people with complex co-morbidities and complex care needs | I41: 0 | K41: NONE
A42: K38 | B42: Understand the complexities of providing mental, cognitive, behavioural and physical care needs across a wide range of integrated care settings | I42: 0 | K42: NONE
A43: K39 | B43: Understand the principles and processes involved in supporting people and families with a range of care needs to maintain optimal independence and avoid unnecessary interventions and disruptions to their lives | I43: 0 | K43: NONE
A44: K40 | B44: Understand own role and contribution when involved in the care of a person who is undergoing discharge or a transition of care between professionals, settings or services | I44: 0 | K44: NONE
A45: K41 | B45: Know the roles, responsibilities and scope of practice of different members of the nursing and interdisciplinary team, and own role within it | I45: 0 | K45: NONE
A46: K42 | B46: Understand and apply the principles of human factors and environmental factors when working in teams | I46: 0 | K46: NONE
A47: K43 | B47: Understand the influence of policy and political drivers that impact health and care provision | I47: 0 | K47: NONE
B48: Skills
A49: S1 | B49: Act in accordance with the Code: Professional standards of practice and behaviour for nurses, midwives and nursing associates (NMC, 2018), and fulfil all registration requirements | I49: =IF(D49:D92 = "FULLY MET",1,IF(D49:D92= "PARTIALLY MET",0.5,IF(D49:D92 = "NOT MET",0,))) -> 0 | K49: PARTIAL
A50: S2 | B50: Keep complete, clear, accurate and timely records | I50: 0 | K50: NONE
A51: S3 | B51: Recognise and report any factors that may adversely impact safe and effective care provision | I51: 0 | K51: NONE
A52: S4 | B52: Take responsibility for continuous self-reflection, seeking and responding to support and feedback to develop professional knowledge and skills | I52: 0 | K52: NONE
A53: S5 | B53: Safely demonstrate evidence-based practice in all skills and procedures required for entry to the register: Standards of proficiency for nursing associates Annex A & B (NMC 2018) | I53: 0 | K53: FULL
A54: S6 | B54: Act as an ambassador for their profession and promote public confidence in health and care services | I54: 0 | K54: NONE
A55: S7 | B55: Communicate effectively using a range of skills and strategies with colleagues and people at all stages of life and with a range of mental, physical, cognitive and behavioural health challenges | I55: 0 | K55: PARTIAL
A56: S8 | B56: Recognise signs of vulnerability in self or colleagues and the action required to minimise risks to health | I56: 0 | K56: NONE
A57: S9 | B57: Develop, manage and maintain appropriate relationships with people, their families, carers and colleagues | I57: 0 | K57: PARTIAL
A58: S10 | B58: Provide, promote, and where appropriate advocate for, non-discriminatory, person-centred and sensitive care at all times, reflecting on people’s values and beliefs, diverse backgrounds, cultural characteristics, language requirements, needs and preferences, taking account of any need for adjustments | I58: 0 | K58: PARTIAL
A59: S11 | B59: Report any situations, behaviours or errors that could result in poor care outcomes | I59: 0 | K59: NONE
A60: S12 | B60: Challenge or report discriminatory behaviour | I60: 0 | K60: PARTIAL
A61: S13 | B61: Apply the aims and principles of health promotion, protection and improvement and the prevention of ill health when engaging with people | I61: 0 | K61: NONE
A62: S14 | B62: Promote preventive health behaviours and provide information to support people to make informed choices to improve their mental, physical, behavioural health and wellbeing | I62: 0 | K62: NONE
A63: S15 | B63: Identify people who are eligible for health screening | I63: 0 | K63: NONE
A64: S16 | B64: Promote health and prevent ill health by understanding the evidence base for immunisation, vaccination and herd immunity | I64: 0 | K64: NONE
A65: S17 | B65: Protect health through understanding and applying the principles of infection prevention and control, including communicable disease surveillance and antimicrobial stewardship and resistance | I65: 0 | K65: PARTIAL
A66: S18 | B66: Apply knowledge, communication and relationship management skills required to provide people, families and carers with accurate information that meets their needs before, during and after a range of interventions | I66: 0 | K66: NONE
A67: S19 | B67: Recognise when capacity has changed recognise and how a person’s capacity affects their ability to make decisions about their own care and to give or withhold consent | I67: 0 | K67: PARTIAL
A68: S20 | B68: Recognise people at risk of abuse, self-harm and/or suicidal ideation and the situations that may put them and others at risk | I68: 0 | K68: PARTIAL
A69: S21 | B69: Monitor the effectiveness of care in partnership with people, families and carers, documenting progress and reporting outcomes | I69: 0 | K69: PARTIAL
A70: S22 | B70: Take personal responsibility to ensure that relevant information is shared according to local policy and appropriate immediate action is taken to provide adequate safeguarding and that concerns are escalated | I70: 0 | K70: PARTIAL
A71: S23 | B71: Work in partnership with people, to encourage shared decision making, in order to support individuals, their families and carers to manage their own care when appropriate | I71: 0 | K71: PARTIAL
A72: S24 | B72: Perform a range of nursing procedures and manage devices, to meet people’s need for safe, effective and person-centred care | I72: 0 | K72: PARTIAL
A73: S25 | B73: Meet people’s needs for safety, dignity, privacy, comfort and sleep | I73: 0 | K73: PARTIAL
A74: S26 | B74: Meet people’s needs related to nutrition, hydration and bladder and bowel health | I74: 0 | K74: PARTIAL
A75: S27 | B75: Meet people’s needs related to mobility, hygiene, oral care, wound care and skin integrity | I75: 0 | K75: PARTIAL
A76: S28 | B76: Support people with commonly encountered symptoms including anxiety, confusion, discomfort and pain | I76: 0 | K76: PARTIAL
A77: S29 | B77: Give information and support to people who are dying, their families and the bereaved and provide care to the deceased | I77: 0 | K77: PARTIAL
A78: S30 | B78: Recognise when a person’s condition has improved or deteriorated by undertaking health monitoring, interpreting, promptly responding, sharing findings and escalating as needed | I78: 0 | K78: PARTIAL
A79: S31 | B79: Act in line with any end of life decisions and orders, organ and tissue donation protocols, infection protocols, advanced planning decisions, living wills and lasting powers of attorney for health | I79: 0 | K79: PARTIAL
A80: S32 | B80: Work collaboratively and in partnership with professionals from different agencies in interdisciplinary teams | I80: 0 | K80: PARTIAL
A81: S33 | B81: Maintain safe work and care environments | I81: 0 | K81: PARTIAL
A82: S34 | B82: Act in line with local and national organisational frameworks, legislation and regulations to report risks, and implement actions as instructed, following up and escalating as required | I82: 0 | K82: PARTIAL
A83: S35 | B83: Accurately undertake risk assessments, using contemporary assessment tools | I83: 0 | K83: NONE
A84: S36 | B84: Respond to and escalate potential hazards that may affect the safety of people | I84: 0 | K84: PARTIAL
A85: S37 | B85: Participate in data collection to support audit activity, and contribute to the implementation of quality improvement strategies | I85: 0 | K85: PARTIAL
A86: S38 | B86: Prioritise and manage own workload, and recognise where elements of care can safely be delegated to other colleagues, carers and family members | I86: 0 | K86: NONE
A87: S39 | B87: Recognise when people need help to facilitate equitable access to care, support and escalate concerns appropriately | I87: 0 | K87: PARTIAL
A88: S40 | B88: Support and motivate other members of the care team and interact confidently with them | I88: 0 | K88: PARTIAL
A89: S41 | B89: Monitor and review the quality of care delivered, providing challenge and constructive feedback when an aspect of care has been delegated to others | I89: 0 | K89: PARTIAL
A90: S42 | B90: Support, supervise and act as a role model to nursing associate students, health care support workers and those new to care roles, review the quality of the care they provide, promoting reflection and providing constructive feedback | I90: 0 | K90: PARTIAL
A91: S43 | B91: Contribute to team reflection activities to promote improvements in practice and services | I91: 0 | K91: PARTIAL
A92: S44 | B92: Access, input, and apply information and data using a range of methods including digital technologies, and share appropriately within interdisciplinary teams | I92: 0 | K92: NONE
B93: Skills
A94: B1 | B94: Treat people with dignity, respecting individual's diversity, beliefs, culture, needs, values, privacy and preferences | I94: =IF(D94:D96 = "FULLY MET",1,IF(D94:D96= "PARTIALLY MET",0.5,IF(D94:D96 = "NOT MET",0,))) -> 0 | K94: NONE
A95: B2 | B95: Show respect and empathy for those you work with, have the courage to challenge areas of concern and work to evidence based best practice | I95: 0 | K95: PARTIAL
A96: B3 | B96: Be adaptable, reliable and consistent, show discretion, resilience and self-awareness | I96: 0 | K96: NONE
I99: Gross score | J99: =SUM(J5:J96) -> 0 | K99: Net Score | L99: =SUM(L5:L96) -> 0
I100: total KSB coverage | J100: =J99/L103 -> 0 | K100: total CoE KSB coverage | L100: =L99/L106 -> 0
K103: total KSBs | L103: 90
K104: fully mitigated | L104: 1
K105: partialy mitigated | L105: 30
K106: net KSB | L106: =L103-L104-(L105*0.5) -> 74

Sheet ST0829
B1: Health play specialist (Level 5)
B2: Return to Guide
A3: KSB | B3: KSB Statement | C3: Detailed page/paragraph reference | D3: KSB coverage | E3: Evidence | F3: Assessment method | G3: Supporting comments/rationale | H3: Documents Present | I3: AB Score | J3: IM Score | K3: Mitigations | L3: CoE Score | M3: Requirement | N3: IM Comment | O3: G7 QA | P3: IM G7 Response | Q3: Conclusion
B4: Knowledge
A5: K1 | B5: The Code of professional conduct and standards of practice and behaviour for registered health play specialist (HPSET, 2019), and how to fulfil all registration requirements | I5: =IF(D5:D23 = "FULLY MET",1,IF(D5:D23 = "PARTIALLY MET",0.5,IF(D5:D23 = "NOT MET",0,))) -> 0 | K5: NONE
A6: K2 | B6: The professional responsibility to adopt a healthy lifestyle to maintain the level of personal fitness and well-being required to meet people’s needs for mental and physical care through play | I6: 0 | K6: NONE
A7: K3 | B7: The relevant legal, regulatory and governance requirements, policies, and ethical frameworks, including any mandatory reporting duties, to all areas of practice Take personal responsibility to ensure that relevant information is shared according to local policy and appropriate immediate action is taken to provide adequate safeguarding and that concerns are escalated e.g. people at risk of abuse, self-harm and/or suicidal ideation and the situations that may put them and others at risk | I7: 0 | K7: NONE
A8: K4 | B8: The meaning of resilience and emotional intelligence, and their influence on an individual’s ability to provide play | I8: 0 | K8: NONE
A9: K5 | B9: The established principles for working with sick children, young people and their families | I9: 0 | K9: NONE
A10: K6 | B10: The Child development theory and research related to specialised play and recreation. | I10: 0 | K10: NONE
A11: K7 | B11: The best practice in health play, based on current theoretical, legal and local policies | I11: 0 | K11: NONE
A12: K8 | B12: How discriminatory behaviour is exhibited | I12: 0 | K12: NONE
A13: K9 | B13: The principles and processes for making reasonable adjustments | I13: 0 | K13: NONE
A14: K10 | B14: The principles of research and how research findings are used to inform evidence-based practice | I14: 0 | K14: NONE
A15: K11 | B15: The principles of health and safety legislation and regulations and maintain safe work and care environments by undertaking risk assessments as per organisational policy | I15: 0 | K15: NONE
A16: K12 | B16: The importance of early years and childhood experiences and the possible impact on life choices, mental, physical and behavioural health and well-being | I16: 0 | K16: NONE
A17: K13 | B17: The contribution of social influences, health literacy, individual circumstances, behaviours and lifestyle choices to mental, physical and behavioural health outcomes | I17: 0 | K17: NONE
A18: K14 | B18: How and when to escalate to the appropriate professional for expert help and advice | I18: 0 | K18: NONE
A19: K15 | B19: Where and how to seek guidance and support from others to ensure that the best interests of those receiving play are upheld, know and understand strategies to develop resilience in self and know how to seek support to help deal with uncertain situations | I19: 0 | K19: NONE
A20: K16 | B20: Own role and the roles of all other staff at different levels of experience and seniority | I20: 0 | K20: NONE
A21: K17 | B21: The roles of the different providers of health and care | I21: 0 | K21: NONE
A22: K18 | B22: The principles of human factors and environmental factors when working in teams | I22: 0 | K22: NONE
A23: K19 | B23: The influence of policy and political drivers that impact health and care provision | I23: 0 | K23: NONE
B24: Skills
A25: S1 | B25: Act in accordance with the Code: Professional standards of practice and behaviour for registered health play specialist (HPSET, 2019), and fulfil all registration requirements | I25: =IF(D25:D55 = "FULLY MET",1,IF(D25:D55 = "PARTIALLY MET",0.5,IF(D25:D55 = "NOT MET",0,))) -> 0 | K25: PARTIAL
A26: S2 | B26: Keep complete, clear, accurate and timely records | I26: 0 | K26: NONE
A27: S3 | B27: Recognise and report any factors that may adversely impact safe and effective play provision | I27: 0 | K27: NONE
A28: S4 | B28: Take responsibility for continuous self-reflection, seeking and responding to support and feedback to develop professional knowledge and skills | I28: 0 | K28: NONE
A29: S5 | B29: Safely demonstrate evidence-based practice in all skills and procedures required for entry to the register: (HPSET, 2019) | I29: 0 | K29: PARTIAL
A30: S6 | B30: Act as an ambassador for their profession and promote public confidence in health play services | I30: 0 | K30: NONE
A31: S7 | B31: Knows a range of communication skills and strategies and how and when to apply the method most suitable to the situation | I31: 0 | K31: NONE
A32: S8 | B32: Recognise signs of vulnerability in self or colleagues and the action required to minimise risks to health | I32: 0 | K32: PARTIAL
A33: S9 | B33: Develop, manage and maintain appropriate relationships with people, their families, carers and colleagues | I33: 0 | K33: PARTIAL
A34: S10 | B34: Provide, promote, and where appropriate advocate for, non-discriminatory, person-centred and sensitive play at all times, reflecting on people’s values and beliefs, diverse backgrounds, cultural characteristics, language requirements, needs and preferences, taking account of any need for adjustments | I34: 0 | K34: PARTIAL
A35: S11 | B35: Report any situations, behaviours or errors that could result in poor outcomes | I35: 0 | K35: NONE
A36: S12 | B36: Challenge or report discriminatory behaviour | I36: 0 | K36: NONE
A37: S13 | B37: Promote behaviours and provide information to support children, young people and their families to make informed choices to improve their mental, physical, behavioural health and wellbeing through play strategies | I37: 0 | K37: PARTIAL
A38: S14 | B38: Apply knowledge, communication and relationship management skills required to provide children, young people, families and carers with accurate information that meets their needs before, during and after a range of play interventions | I38: 0 | K38: PARTIAL
A39: S15 | B39: Recognise when capacity has changed and how a person’s capacity affects their ability to make decisions about their own care and to give or withhold consent | I39: 0 | K39: PARTIAL
A40: S16 | B40: Recognise people at risk of abuse, self-harm and/or suicidal ideation and the situations that may put them and others at risk | I40: 0 | K40: PARTIAL
A41: S17 | B41: Monitor the effectiveness of play in partnership with children young people, families and carers, documenting progress and reporting outcomes | I41: 0 | K41: PARTIAL
A42: S18 | B42: Take personal responsibility to ensure that relevant information is shared according to local policy and appropriate immediate action is taken to provide adequate safeguarding and that concerns are escalated | I42: 0 | K42: PARTIAL
A43: S19 | B43: Work in partnership with other professionals, to encourage shared decision making, in order to support individuals | I43: 0 | K43: PARTIAL
A44: S20 | B44: Meet children and young people’s needs for safety, dignity, privacy, comfort and play | I44: 0 | K44: PARTIAL
A45: S21 | B45: Support people with commonly encountered symptoms including anxiety, confusion, discomfort and pain | I45: 0 | K45: FULL
A46: S22 | B46: Work collaboratively and in partnership with professionals from different agencies in interdisciplinary teams | I46: 0 | K46: PARTIAL
A47: S23 | B47: Maintain safe work and play environments | I47: 0 | K47: NONE
A48: S24 | B48: Act in line with local and national organisational frameworks, legislation and regulations to report risks, and implement actions as instructed, following up and escalating as required | I48: 0 | K48: PARTIAL
A49: S25 | B49: Accurately undertake risk assessments, using contemporary assessment tools as per organisation policy and procedures | I49: 0 | K49: NONE
A50: S26 | B50: Respond to and escalate potential hazards that may affect the safety of Child, young people and adults | I50: 0 | K50: PARTIAL
A51: S27 | B51: Participate in data collection to support audit activity, and contribute to the implementation of quality improvement strategies | I51: 0 | K51: PARTIAL
A52: S28 | B52: Prioritise and manage own workload, and recognise where elements of care can safely be delegated to other colleagues, carers and family members | I52: 0 | K52: NONE
A53: S29 | B53: Support, supervise and act as a role model to health play specialist students and members of other professional teams and those new to care roles, review the quality of the play they provide, promoting reflection and providing constructive feedback | I53: 0 | K53: PARTIAL
A54: S30 | B54: Contribute to team reflection activities to promote improvements in practice and services | I54: 0 | K54: NONE
A55: S31 | B55: Access, input, and apply information and data using a range of methods including digital technologies, and share appropriately within interdisciplinary team | I55: 0 | K55: NONE
B56: Behaviours
A57: B1 | B57: Treat people with dignity, respecting individual's diversity, beliefs, culture, needs, values, privacy and preferences | I57: =IF(D57:D59 = "FULLY MET",1,IF(D57:D59 = "PARTIALLY MET",0.5,IF(D57:D59 = "NOT MET",0,))) -> 0 | K57: NONE
A58: B2 | B58: Show respect and empathy for those you work with, have the courage to challenge areas of concern and work to evidence based best practice | I58: 0 | K58: PARTIAL
A59: B3 | B59: Be adaptable, reliable and consistent, show discretion, resilience and self-awareness | I59: 0 | K59: NONE
I62: Gross score | J62: =SUM(J5:J59) -> 0 | K62: Net Score | L62: =SUM(L5:L59) -> 0
I63: total KSB coverage | J63: =J62/L66 -> 0 | K63: total CoE KSB coverage | L63: =L62/L69 -> 0
K66: total KSBs | L66: 53
K67: fully mitigated | L67: 1
K68: partialy mitigated | L68: 19
K69: net KSB | L69: =L66-L67-(L68*0.5) -> 42.5

Sheet ST0873
B1: Hygiene specialist (Level 4)
B2: Return to Guide
A3: KSB | B3: KSB Statement | C3: Detailed page/paragraph reference | D3: KSB coverage | E3: Evidence | F3: Assessment method | G3: Supporting comments/rationale | H3: Documents Present | I3: AB Score | J3: IM Score | K3: Mitigations | L3: CoE Score | M3: Requirement | N3: IM Comment | O3: G7 QA | P3: IM G7 Response | Q3: Conclusion
B4: Knowledge
A5: K1 | B5: Relevant national and international industry legislation and codes of practice, including Health and Safety at Work Act, Control of Substances Hazardous to Health (COSHH), employment, product, chemical and environmental legislation | I5: =IF(D5:D25 = "FULLY MET",1,IF(D5:D25 = "PARTIALLY MET",0.5,IF(D5:D25 = "NOT MET",0,))) -> 0 | K5: NONE
A6: K2 | B6: Hygiene methodology considering materials of construction (premises and equipment), types of contamination, environment and water chemistry | I6: 0 | K6: NONE
A7: K3 | B7: Chemical hygiene practices: the science of chemicals and the impact of the selection of chemicals | I7: 0 | K7: NONE
A8: K4 | B8: Alternative hygiene practices e.g. the use of ozone, steam, carbon dioxide | I8: 0 | K8: NONE
A9: K5 | B9: Hygienic design principles of premises and equipment | I9: 0 | K9: NONE
A10: K6 | B10: Hazard control associated with the hygiene process, e.g. allergens, microbiological, chemical, physical and speciation | I10: 0 | K10: NONE
A11: K7 | B11: Design of effective hygiene management systems, including method statements, risk assessments, safe systems of work | I11: 0 | K11: NONE
A12: K8 | B12: How to plan and organise resources, e.g. people, timescales, equipment, materials, costs | I12: 0 | K12: NONE
A13: K9 | B13: Pest control – knowledge of types of pests, controls, prevention and pest control documentation | I13: 0 | K13: NONE
A14: K10 | B14: Contract management – management of costs, overview of contracts, specifications, service level agreements | I14: 0 | K14: NONE
A15: K11 | B15: People management – selecting, leading, managing, coaching, developing | I15: 0 | K15: NONE
A16: K12 | B16: Types and application of environmental sampling e.g. adenosine triphosphate (ATP), swabs, air sampling | I16: 0 | K16: NONE
A17: K13 | B17: Validation, verification and monitoring techniques of hygiene processes | I17: 0 | K17: NONE
A18: K14 | B18: How to deal appropriately with incidents and accidents including disaster recovery and critical incidents. | I18: 0 | K18: NONE
A19: K15 | B19: Effluent treatment, drainage and discharge – volume, concentration, chemical composition | I19: 0 | K19: NONE
A20: K16 | B20: The principles of project management | I20: 0 | K20: NONE
A21: K17 | B21: The principles and tools of continuous improvement, including LEAN, 8 Wastes, Kaizen, 5S, Six Sigma, route cause analysis | I21: 0 | K21: NONE
A22: K18 | B22: The principles of auditing practice | I22: 0 | K22: NONE
A23: K19 | B23: Management information systems, the systems utilised by the organisation – how to analyse data and identify trends | I23: 0 | K23: NONE
A24: K20 | B24: How to sustainably manage and reduce waste | I24: 0 | K24: NONE
A25: K21 | B25: Budget management tools and techniques | I25: 0 | K25: NONE
B26: Skills
A27: S1 | B27: Comply with relevant industry legislation, permits, codes of practice and safe working practices | I27: =IF(D27:D44 = "FULLY MET",1,IF(D27:D44 = "PARTIALLY MET",0.5,IF(D27:D44 = "NOT MET",0,))) -> 0 | K27: NONE
A28: S2 | B28: Select and apply the most appropriate and effective hygiene methodology | I28: 0 | K28: NONE
A29: S3 | B29: Contribute to the design of new, and the modification of, existing premises and equipment | I29: 0 | K29: NONE
A30: S4 | B30: Contribute to the identification and implementation of controls to minimise the risk of hazards | I30: 0 | K30: NONE
A31: S5 | B31: Create and maintain a hygiene management system including hygiene related documentation, method statements, risk assessments, safe systems of work | I31: 0 | K31: NONE
A32: S6 | B32: Plan, organise, prioritise time and resources effectively to maintain organisational hygiene standards | I32: 0 | K32: NONE
A33: S7 | B33: Manage an integrated pest management system | I33: 0 | K33: NONE
A34: S8 | B34: Review and manage contracts, costs, specifications, service level agreements and appropriate supplier controls; assess supplier, contractor and vendor performance | I34: 0 | K34: PARTIAL
A35: S9 | B35: Lead, manage and develop individuals and cross-functional teams | I35: 0 | K35: PARTIAL
A36: S10 | B36: Select and carry out the most appropriate sampling methodology | I36: 0 | K36: NONE
A37: S11 | B37: Implement validation, verification and monitoring activities to evaluate the effectiveness of organisational hygiene standards | I37: 0 | K37: NONE
A38: S12 | B38: Deal appropriately with incidents and accidents and suggest recommendations to prevent reoccurrence | I38: 0 | K38: PARTIAL
A39: S13 | B39: Use project management tools to deliver projects to time, cost, specification and quality | I39: 0 | K39: NONE
A40: S14 | B40: Contribute and lead hygiene continuous improvement activities. | I40: 0 | K40: NONE
A41: S15 | B41: Establish and implement the audit schedule in relation to hygiene activities to ensure compliance with legal, industry and customer standards; conduct internal and external audits across functions | I41: 0 | K41: PARTIAL
A42: S16 | B42: Analyse and evaluate information and data to make informed decisions and present solutions; create and formulate spreadsheets and graphs, electronic filing systems, presentations, reports; utilising electronic communications | I42: 0 | K42: NONE
A43: S17 | B43: Manage the waste streams and identify methods of waste reduction | I43: 0 | K43: NONE
A44: S18 | B44: Agree and manage hygiene budgets; monitor forecasts versus actual costs | I44: 0 | K44: NONE
B45: Behaviours
A46: B1 | B46: Positive attitude: accepts responsibility, is proactive and plans work, tenacious in approach, committed to equality and diversity, and demonstrates a safety mind-set | I46: =IF(D46:D53 = "FULLY MET",1,IF(D46:D53 = "PARTIALLY MET",0.5,IF(D46:D53 = "NOT MET",0,))) -> 0 | K46: NONE
A47: B2 | B47: Drive for results: Proactively seeks and acts on feedback. Continuous drive for change and encourages others to deliver results across functional areas capturing and standardising best practice | I47: 0 | K47: NONE
A48: B3 | B48: Team-working: Awareness of own and others’ working styles and collaborates with others to achieve results. | I48: 0 | K48: NONE
A49: B4 | B49: Inspirational: Leads by example, acts with integrity, builds trust and demonstrates respect for others | I49: 0 | K49: NONE
A50: B5 | B50: Communicates effectively: Adapts style to suit audience and situation, influences and persuades key stakeholders | I50: 0 | K50: NONE
A51: B6 | B51: Managing Change: Resilient and adaptable when dealing with challenge and change, maintaining focus and self-control, flexible to changing work environment and demands | I51: 0 | K51: PARTIAL
A52: B7 | B52: Innovation: Challenges the status quo to foster new ways of thinking and working and resolve problems; seeks out opportunities to drive forward change and improvements for the business | I52: 0 | K52: PARTIAL
A53: B8 | B53: Company/industry perspective: knowledge of company and industry, acts as an ambassador both internally and externally | I53: 0 | K53: PARTIAL
I56: Gross score | J56: =SUM(J5:J53) -> 0 | K56: Net Score | L56: =SUM(L5:L53) -> 0
I57: total KSB coverage | J57: =J56/L60 -> 0 | K57: total CoE KSB coverage | L57: =L56/L63 -> 0
K60: total KSBs | L60: 47
K61: fully mitigated | L61: 0
K62: partialy mitigated | L62: 7
K63: net KSB | L63: =L60-L61-(L62*0.5) -> 43.5

Sheet Source filters (hidden)
A4: Additional content | B4: YES | C4: Standard 1 | D4: FULLY MET | F4: PARTIAL
A5: ST0215 | B5: NO | C5: Standard 2 | D5: PARTIALLY MET | F5: FULL
A6: ST0287 | C6: Standard 3 | D6: NOT MET
A7: ST0786 | C7: Standard 4
A8: ST0543 | C8: Standard 5
A9: ST0108 | C9: Standard 6
A10: ST0829 | C10: NO COVERAGE
A11: ST0220
A12: ST0600
A13: ST0873 | C13: Provider setting (e.g. classroom)
A14: ST0583 | C14: Online
A15: ST0827 | C15: Distance
A16: ST0542 | C16: Placement
A17: ST0701 | C17: Mixed
A18: ST0431
A19: ST0283
A20: ST0770
A21: ST0597
A26: Year 1
A27: Year 2
A28: Year 3
A29: Year 4
A30: Across years
A31: Core
A32: Option
A34: Yes
A35: No
A37: 4
A38: 5
